{"text_format":"1","workbook":"xlsx","n_sheets":2,"sheets":["Orario","Elenco degli interventi"],"not_rendered":{"charts":0,"images":1,"macros":1,"external_links":0,"defined_names":13,"comments":0,"pivot_tables":0},"unopened":[],"bounds":{"document_bytes":16777216,"sheet_cells":100000,"rows_first":2000,"rows_last":500,"rows_between":2000,"halvings":0,"cell_chars":16384,"cell_head_chars":4096},"cells_cut":0,"cells_raw":0,"read":"whole","date_system":"1900"}

{"sheet":"Orario","index":0,"n_rows":64,"n_cols":9,"rows_kept":64,"cut":false,"hidden":false,"merged":[[1,1,2,5]]}
[]
[null,"Orario per …..",null,null,null,null,"INIZIO","INTERVALLO "]
[null,null,null,null,null,null,"08:00:00","15 MIN",{"$f":"--LEFT(texteminutes,2)","v":15}]
[null,"ORA","DOMENICA","LUNEDÌ","MARTEDÌ","MERCOLEDÌ","GIOVEDÌ","VENERDÌ","SABATO"]
[null,{"$f":"Début","v":"08:00:00"},{"$f":"IFERROR(INDEX(tblListedesclasses[],MATCH(SUMPRODUCT((tblListedesclasses[GIORNO]=tblHoraires[[#Headers],[DOMENICA]])*($B5>=tblListedesclasses[ORA INIZIO])*($B5<=tblListedesclasses[ORA FINE]),tblListedesclasses[UNIQUE]),tblListedesclasses[UNIQUE],0),2),0)","v":0},{"$f":"IFERROR(INDEX(tblListedesclasses[],MATCH(SUMPRODUCT((tblListedesclasses[GIORNO]=tblHoraires[[#Headers],[LUNEDÌ]])*($B5>=tblListedesclasses[ORA INIZIO])*($B5<=tblListedesclasses[ORA FINE]),tblListedesclasses[UNIQUE]),tblListedesclasses[UNIQUE],0),2),0)","v":0},{"$f":"IFERROR(INDEX(tblListedesclasses[],MATCH(SUMPRODUCT((tblListedesclasses[GIORNO]=tblHoraires[[#Headers],[MARTEDÌ]])*($B5>=tblListedesclasses[ORA INIZIO])*($B5<=tblListedesclasses[ORA FINE]),tblListedesclasses[UNIQUE]),tblListedesclasses[UNIQUE],0),2),0)","v":0},{"$f":"IFERROR(INDEX(tblListedesclasses[],MATCH(SUMPRODUCT((tblListedesclasses[GIORNO]=tblHoraires[[#Headers],[MERCOLEDÌ]])*($B5>=tblListedesclasses[ORA INIZIO])*($B5<=tblListedesclasses[ORA FINE]),tblListedesclasses[UNIQUE]),tblListedesclasses[UNIQUE],0),2),0)","v":0},{"$f":"IFERROR(INDEX(tblListedesclasses[],MATCH(SUMPRODUCT((tblListedesclasses[GIORNO]=tblHoraires[[#Headers],[GIOVEDÌ]])*($B5>=tblListedesclasses[ORA INIZIO])*($B5<=tblListedesclasses[ORA FINE]),tblListedesclasses[UNIQUE]),tblListedesclasses[UNIQUE],0),2),0)","v":0},{"$f":"IFERROR(INDEX(tblListedesclasses[],MATCH(SUMPRODUCT((tblListedesclasses[GIORNO]=tblHoraires[[#Headers],[VENERDÌ]])*($B5>=tblListedesclasses[ORA INIZIO])*($B5<=tblListedesclasses[ORA FINE]),tblListedesclasses[UNIQUE]),tblListedesclasses[UNIQUE],0),2),0)","v":0},{"$f":"IFERROR(INDEX(tblListedesclasses[],MATCH(SUMPRODUCT((tblListedesclasses[GIORNO]=tblHoraires[[#Headers],[SABATO]])*($B5>=tblListedesclasses[ORA INIZIO])*($B5<=tblListedesclasses[ORA FINE]),tblListedesclasses[UNIQUE]),tblListedesclasses[UNIQUE],0),2),0)","v":0}]
[null,{"$f":"B5+TIME(0,Intervalleminutes,0)","v":"08:15:00"},{"$f":"IFERROR(INDEX(tblListedesclasses[],MATCH(SUMPRODUCT((tblListedesclasses[GIORNO]=tblHoraires[[#Headers],[DOMENICA]])*($B6>=tblListedesclasses[ORA INIZIO])*($B6<=tblListedesclasses[ORA FINE]),tblListedesclasses[UNIQUE]),tblListedesclasses[UNIQUE],0),2),0)","v":0},{"$f":"IFERROR(INDEX(tblListedesclasses[],MATCH(SUMPRODUCT((tblListedesclasses[GIORNO]=tblHoraires[[#Headers],[LUNEDÌ]])*($B6>=tblListedesclasses[ORA INIZIO])*($B6<=tblListedesclasses[ORA FINE]),tblListedesclasses[UNIQUE]),tblListedesclasses[UNIQUE],0),2),0)","v":0},{"$f":"IFERROR(INDEX(tblListedesclasses[],MATCH(SUMPRODUCT((tblListedesclasses[GIORNO]=tblHoraires[[#Headers],[MARTEDÌ]])*($B6>=tblListedesclasses[ORA INIZIO])*($B6<=tblListedesclasses[ORA FINE]),tblListedesclasses[UNIQUE]),tblListedesclasses[UNIQUE],0),2),0)","v":0},{"$f":"IFERROR(INDEX(tblListedesclasses[],MATCH(SUMPRODUCT((tblListedesclasses[GIORNO]=tblHoraires[[#Headers],[MERCOLEDÌ]])*($B6>=tblListedesclasses[ORA INIZIO])*($B6<=tblListedesclasses[ORA FINE]),tblListedesclasses[UNIQUE]),tblListedesclasses[UNIQUE],0),2),0)","v":0},{"$f":"IFERROR(INDEX(tblListedesclasses[],MATCH(SUMPRODUCT((tblListedesclasses[GIORNO]=tblHoraires[[#Headers],[GIOVEDÌ]])*($B6>=tblListedesclasses[ORA INIZIO])*($B6<=tblListedesclasses[ORA FINE]),tblListedesclasses[UNIQUE]),tblListedesclasses[UNIQUE],0),2),0)","v":0},{"$f":"IFERROR(INDEX(tblListedesclasses[],MATCH(SUMPRODUCT((tblListedesclasses[GIORNO]=tblHoraires[[#Headers],[VENERDÌ]])*($B6>=tblListedesclasses[ORA INIZIO])*($B6<=tblListedesclasses[ORA FINE]),tblListedesclasses[UNIQUE]),tblListedesclasses[UNIQUE],0),2),0)","v":0},{"$f":"IFERROR(INDEX(tblListedesclasses[],MATCH(SUMPRODUCT((tblListedesclasses[GIORNO]=tblHoraires[[#Headers],[SABATO]])*($B6>=tblListedesclasses[ORA INIZIO])*($B6<=tblListedesclasses[ORA FINE]),tblListedesclasses[UNIQUE]),tblListedesclasses[UNIQUE],0),2),0)","v":0}]
[null,"08:30:00",{"$f":"IFERROR(INDEX(tblListedesclasses[],MATCH(SUMPRODUCT((tblListedesclasses[GIORNO]=tblHoraires[[#Headers],[DOMENICA]])*($B7>=tblListedesclasses[ORA INIZIO])*($B7<=tblListedesclasses[ORA FINE]),tblListedesclasses[UNIQUE]),tblListedesclasses[UNIQUE],0),2),0)","v":0},{"$f":"IFERROR(INDEX(tblListedesclasses[],MATCH(SUMPRODUCT((tblListedesclasses[GIORNO]=tblHoraires[[#Headers],[LUNEDÌ]])*($B7>=tblListedesclasses[ORA INIZIO])*($B7<=tblListedesclasses[ORA FINE]),tblListedesclasses[UNIQUE]),tblListedesclasses[UNIQUE],0),2),0)","v":0},{"$f":"IFERROR(INDEX(tblListedesclasses[],MATCH(SUMPRODUCT((tblListedesclasses[GIORNO]=tblHoraires[[#Headers],[MARTEDÌ]])*($B7>=tblListedesclasses[ORA INIZIO])*($B7<=tblListedesclasses[ORA FINE]),tblListedesclasses[UNIQUE]),tblListedesclasses[UNIQUE],0),2),0)","v":0},{"$f":"IFERROR(INDEX(tblListedesclasses[],MATCH(SUMPRODUCT((tblListedesclasses[GIORNO]=tblHoraires[[#Headers],[MERCOLEDÌ]])*($B7>=tblListedesclasses[ORA INIZIO])*($B7<=tblListedesclasses[ORA FINE]),tblListedesclasses[UNIQUE]),tblListedesclasses[UNIQUE],0),2),0)","v":0},{"$f":"IFERROR(INDEX(tblListedesclasses[],MATCH(SUMPRODUCT((tblListedesclasses[GIORNO]=tblHoraires[[#Headers],[GIOVEDÌ]])*($B7>=tblListedesclasses[ORA INIZIO])*($B7<=tblListedesclasses[ORA FINE]),tblListedesclasses[UNIQUE]),tblListedesclasses[UNIQUE],0),2),0)","v":0},{"$f":"IFERROR(INDEX(tblListedesclasses[],MATCH(SUMPRODUCT((tblListedesclasses[GIORNO]=tblHoraires[[#Headers],[VENERDÌ]])*($B7>=tblListedesclasses[ORA INIZIO])*($B7<=tblListedesclasses[ORA FINE]),tblListedesclasses[UNIQUE]),tblListedesclasses[UNIQUE],0),2),0)","v":0},{"$f":"IFERROR(INDEX(tblListedesclasses[],MATCH(SUMPRODUCT((tblListedesclasses[GIORNO]=tblHoraires[[#Headers],[SABATO]])*($B7>=tblListedesclasses[ORA INIZIO])*($B7<=tblListedesclasses[ORA FINE]),tblListedesclasses[UNIQUE]),tblListedesclasses[UNIQUE],0),2),0)","v":0}]
[null,"08:45:00",{"$f":"IFERROR(INDEX(tblListedesclasses[],MATCH(SUMPRODUCT((tblListedesclasses[GIORNO]=tblHoraires[[#Headers],[DOMENICA]])*($B8>=tblListedesclasses[ORA INIZIO])*($B8<=tblListedesclasses[ORA FINE]),tblListedesclasses[UNIQUE]),tblListedesclasses[UNIQUE],0),2),0)","v":0},{"$f":"IFERROR(INDEX(tblListedesclasses[],MATCH(SUMPRODUCT((tblListedesclasses[GIORNO]=tblHoraires[[#Headers],[LUNEDÌ]])*($B8>=tblListedesclasses[ORA INIZIO])*($B8<=tblListedesclasses[ORA FINE]),tblListedesclasses[UNIQUE]),tblListedesclasses[UNIQUE],0),2),0)","v":0},{"$f":"IFERROR(INDEX(tblListedesclasses[],MATCH(SUMPRODUCT((tblListedesclasses[GIORNO]=tblHoraires[[#Headers],[MARTEDÌ]])*($B8>=tblListedesclasses[ORA INIZIO])*($B8<=tblListedesclasses[ORA FINE]),tblListedesclasses[UNIQUE]),tblListedesclasses[UNIQUE],0),2),0)","v":0},{"$f":"IFERROR(INDEX(tblListedesclasses[],MATCH(SUMPRODUCT((tblListedesclasses[GIORNO]=tblHoraires[[#Headers],[MERCOLEDÌ]])*($B8>=tblListedesclasses[ORA INIZIO])*($B8<=tblListedesclasses[ORA FINE]),tblListedesclasses[UNIQUE]),tblListedesclasses[UNIQUE],0),2),0)","v":0},{"$f":"IFERROR(INDEX(tblListedesclasses[],MATCH(SUMPRODUCT((tblListedesclasses[GIORNO]=tblHoraires[[#Headers],[GIOVEDÌ]])*($B8>=tblListedesclasses[ORA INIZIO])*($B8<=tblListedesclasses[ORA FINE]),tblListedesclasses[UNIQUE]),tblListedesclasses[UNIQUE],0),2),0)","v":0},{"$f":"IFERROR(INDEX(tblListedesclasses[],MATCH(SUMPRODUCT((tblListedesclasses[GIORNO]=tblHoraires[[#Headers],[VENERDÌ]])*($B8>=tblListedesclasses[ORA INIZIO])*($B8<=tblListedesclasses[ORA FINE]),tblListedesclasses[UNIQUE]),tblListedesclasses[UNIQUE],0),2),0)","v":0},{"$f":"IFERROR(INDEX(tblListedesclasses[],MATCH(SUMPRODUCT((tblListedesclasses[GIORNO]=tblHoraires[[#Headers],[SABATO]])*($B8>=tblListedesclasses[ORA INIZIO])*($B8<=tblListedesclasses[ORA FINE]),tblListedesclasses[UNIQUE]),tblListedesclasses[UNIQUE],0),2),0)","v":0}]
[null,"09:00:00",{"$f":"IFERROR(INDEX(tblListedesclasses[],MATCH(SUMPRODUCT((tblListedesclasses[GIORNO]=tblHoraires[[#Headers],[DOMENICA]])*($B9>=tblListedesclasses[ORA INIZIO])*($B9<=tblListedesclasses[ORA FINE]),tblListedesclasses[UNIQUE]),tblListedesclasses[UNIQUE],0),2),0)","v":0},{"$f":"IFERROR(INDEX(tblListedesclasses[],MATCH(SUMPRODUCT((tblListedesclasses[GIORNO]=tblHoraires[[#Headers],[LUNEDÌ]])*($B9>=tblListedesclasses[ORA INIZIO])*($B9<=tblListedesclasses[ORA FINE]),tblListedesclasses[UNIQUE]),tblListedesclasses[UNIQUE],0),2),0)","v":0},{"$f":"IFERROR(INDEX(tblListedesclasses[],MATCH(SUMPRODUCT((tblListedesclasses[GIORNO]=tblHoraires[[#Headers],[MARTEDÌ]])*($B9>=tblListedesclasses[ORA INIZIO])*($B9<=tblListedesclasses[ORA FINE]),tblListedesclasses[UNIQUE]),tblListedesclasses[UNIQUE],0),2),0)","v":0},{"$f":"IFERROR(INDEX(tblListedesclasses[],MATCH(SUMPRODUCT((tblListedesclasses[GIORNO]=tblHoraires[[#Headers],[MERCOLEDÌ]])*($B9>=tblListedesclasses[ORA INIZIO])*($B9<=tblListedesclasses[ORA FINE]),tblListedesclasses[UNIQUE]),tblListedesclasses[UNIQUE],0),2),0)","v":0},{"$f":"IFERROR(INDEX(tblListedesclasses[],MATCH(SUMPRODUCT((tblListedesclasses[GIORNO]=tblHoraires[[#Headers],[GIOVEDÌ]])*($B9>=tblListedesclasses[ORA INIZIO])*($B9<=tblListedesclasses[ORA FINE]),tblListedesclasses[UNIQUE]),tblListedesclasses[UNIQUE],0),2),0)","v":0},{"$f":"IFERROR(INDEX(tblListedesclasses[],MATCH(SUMPRODUCT((tblListedesclasses[GIORNO]=tblHoraires[[#Headers],[VENERDÌ]])*($B9>=tblListedesclasses[ORA INIZIO])*($B9<=tblListedesclasses[ORA FINE]),tblListedesclasses[UNIQUE]),tblListedesclasses[UNIQUE],0),2),0)","v":"Spitex"},{"$f":"IFERROR(INDEX(tblListedesclasses[],MATCH(SUMPRODUCT((tblListedesclasses[GIORNO]=tblHoraires[[#Headers],[SABATO]])*($B9>=tblListedesclasses[ORA INIZIO])*($B9<=tblListedesclasses[ORA FINE]),tblListedesclasses[UNIQUE]),tblListedesclasses[UNIQUE],0),2),0)","v":0}]
[null,"09:15:00",{"$f":"IFERROR(INDEX(tblListedesclasses[],MATCH(SUMPRODUCT((tblListedesclasses[GIORNO]=tblHoraires[[#Headers],[DOMENICA]])*($B10>=tblListedesclasses[ORA INIZIO])*($B10<=tblListedesclasses[ORA FINE]),tblListedesclasses[UNIQUE]),tblListedesclasses[UNIQUE],0),2),0)","v":0},{"$f":"IFERROR(INDEX(tblListedesclasses[],MATCH(SUMPRODUCT((tblListedesclasses[GIORNO]=tblHoraires[[#Headers],[LUNEDÌ]])*($B10>=tblListedesclasses[ORA INIZIO])*($B10<=tblListedesclasses[ORA FINE]),tblListedesclasses[UNIQUE]),tblListedesclasses[UNIQUE],0),2),0)","v":0},{"$f":"IFERROR(INDEX(tblListedesclasses[],MATCH(SUMPRODUCT((tblListedesclasses[GIORNO]=tblHoraires[[#Headers],[MARTEDÌ]])*($B10>=tblListedesclasses[ORA INIZIO])*($B10<=tblListedesclasses[ORA FINE]),tblListedesclasses[UNIQUE]),tblListedesclasses[UNIQUE],0),2),0)","v":0},{"$f":"IFERROR(INDEX(tblListedesclasses[],MATCH(SUMPRODUCT((tblListedesclasses[GIORNO]=tblHoraires[[#Headers],[MERCOLEDÌ]])*($B10>=tblListedesclasses[ORA INIZIO])*($B10<=tblListedesclasses[ORA FINE]),tblListedesclasses[UNIQUE]),tblListedesclasses[UNIQUE],0),2),0)","v":0},{"$f":"IFERROR(INDEX(tblListedesclasses[],MATCH(SUMPRODUCT((tblListedesclasses[GIORNO]=tblHoraires[[#Headers],[GIOVEDÌ]])*($B10>=tblListedesclasses[ORA INIZIO])*($B10<=tblListedesclasses[ORA FINE]),tblListedesclasses[UNIQUE]),tblListedesclasses[UNIQUE],0),2),0)","v":0},{"$f":"IFERROR(INDEX(tblListedesclasses[],MATCH(SUMPRODUCT((tblListedesclasses[GIORNO]=tblHoraires[[#Headers],[VENERDÌ]])*($B10>=tblListedesclasses[ORA INIZIO])*($B10<=tblListedesclasses[ORA FINE]),tblListedesclasses[UNIQUE]),tblListedesclasses[UNIQUE],0),2),0)","v":"Spitex"},{"$f":"IFERROR(INDEX(tblListedesclasses[],MATCH(SUMPRODUCT((tblListedesclasses[GIORNO]=tblHoraires[[#Headers],[SABATO]])*($B10>=tblListedesclasses[ORA INIZIO])*($B10<=tblListedesclasses[ORA FINE]),tblListedesclasses[UNIQUE]),tblListedesclasses[UNIQUE],0),2),0)","v":0}]
[null,"09:30:00",{"$f":"IFERROR(INDEX(tblListedesclasses[],MATCH(SUMPRODUCT((tblListedesclasses[GIORNO]=tblHoraires[[#Headers],[DOMENICA]])*($B11>=tblListedesclasses[ORA INIZIO])*($B11<=tblListedesclasses[ORA FINE]),tblListedesclasses[UNIQUE]),tblListedesclasses[UNIQUE],0),2),0)","v":0},{"$f":"IFERROR(INDEX(tblListedesclasses[],MATCH(SUMPRODUCT((tblListedesclasses[GIORNO]=tblHoraires[[#Headers],[LUNEDÌ]])*($B11>=tblListedesclasses[ORA INIZIO])*($B11<=tblListedesclasses[ORA FINE]),tblListedesclasses[UNIQUE]),tblListedesclasses[UNIQUE],0),2),0)","v":0},{"$f":"IFERROR(INDEX(tblListedesclasses[],MATCH(SUMPRODUCT((tblListedesclasses[GIORNO]=tblHoraires[[#Headers],[MARTEDÌ]])*($B11>=tblListedesclasses[ORA INIZIO])*($B11<=tblListedesclasses[ORA FINE]),tblListedesclasses[UNIQUE]),tblListedesclasses[UNIQUE],0),2),0)","v":0},{"$f":"IFERROR(INDEX(tblListedesclasses[],MATCH(SUMPRODUCT((tblListedesclasses[GIORNO]=tblHoraires[[#Headers],[MERCOLEDÌ]])*($B11>=tblListedesclasses[ORA INIZIO])*($B11<=tblListedesclasses[ORA FINE]),tblListedesclasses[UNIQUE]),tblListedesclasses[UNIQUE],0),2),0)","v":0},{"$f":"IFERROR(INDEX(tblListedesclasses[],MATCH(SUMPRODUCT((tblListedesclasses[GIORNO]=tblHoraires[[#Headers],[GIOVEDÌ]])*($B11>=tblListedesclasses[ORA INIZIO])*($B11<=tblListedesclasses[ORA FINE]),tblListedesclasses[UNIQUE]),tblListedesclasses[UNIQUE],0),2),0)","v":0},{"$f":"IFERROR(INDEX(tblListedesclasses[],MATCH(SUMPRODUCT((tblListedesclasses[GIORNO]=tblHoraires[[#Headers],[VENERDÌ]])*($B11>=tblListedesclasses[ORA INIZIO])*($B11<=tblListedesclasses[ORA FINE]),tblListedesclasses[UNIQUE]),tblListedesclasses[UNIQUE],0),2),0)","v":"Spitex"},{"$f":"IFERROR(INDEX(tblListedesclasses[],MATCH(SUMPRODUCT((tblListedesclasses[GIORNO]=tblHoraires[[#Headers],[SABATO]])*($B11>=tblListedesclasses[ORA INIZIO])*($B11<=tblListedesclasses[ORA FINE]),tblListedesclasses[UNIQUE]),tblListedesclasses[UNIQUE],0),2),0)","v":0}]
[null,"09:45:00",{"$f":"IFERROR(INDEX(tblListedesclasses[],MATCH(SUMPRODUCT((tblListedesclasses[GIORNO]=tblHoraires[[#Headers],[DOMENICA]])*($B12>=tblListedesclasses[ORA INIZIO])*($B12<=tblListedesclasses[ORA FINE]),tblListedesclasses[UNIQUE]),tblListedesclasses[UNIQUE],0),2),0)","v":0},{"$f":"IFERROR(INDEX(tblListedesclasses[],MATCH(SUMPRODUCT((tblListedesclasses[GIORNO]=tblHoraires[[#Headers],[LUNEDÌ]])*($B12>=tblListedesclasses[ORA INIZIO])*($B12<=tblListedesclasses[ORA FINE]),tblListedesclasses[UNIQUE]),tblListedesclasses[UNIQUE],0),2),0)","v":0},{"$f":"IFERROR(INDEX(tblListedesclasses[],MATCH(SUMPRODUCT((tblListedesclasses[GIORNO]=tblHoraires[[#Headers],[MARTEDÌ]])*($B12>=tblListedesclasses[ORA INIZIO])*($B12<=tblListedesclasses[ORA FINE]),tblListedesclasses[UNIQUE]),tblListedesclasses[UNIQUE],0),2),0)","v":0},{"$f":"IFERROR(INDEX(tblListedesclasses[],MATCH(SUMPRODUCT((tblListedesclasses[GIORNO]=tblHoraires[[#Headers],[MERCOLEDÌ]])*($B12>=tblListedesclasses[ORA INIZIO])*($B12<=tblListedesclasses[ORA FINE]),tblListedesclasses[UNIQUE]),tblListedesclasses[UNIQUE],0),2),0)","v":0},{"$f":"IFERROR(INDEX(tblListedesclasses[],MATCH(SUMPRODUCT((tblListedesclasses[GIORNO]=tblHoraires[[#Headers],[GIOVEDÌ]])*($B12>=tblListedesclasses[ORA INIZIO])*($B12<=tblListedesclasses[ORA FINE]),tblListedesclasses[UNIQUE]),tblListedesclasses[UNIQUE],0),2),0)","v":0},{"$f":"IFERROR(INDEX(tblListedesclasses[],MATCH(SUMPRODUCT((tblListedesclasses[GIORNO]=tblHoraires[[#Headers],[VENERDÌ]])*($B12>=tblListedesclasses[ORA INIZIO])*($B12<=tblListedesclasses[ORA FINE]),tblListedesclasses[UNIQUE]),tblListedesclasses[UNIQUE],0),2),0)","v":0},{"$f":"IFERROR(INDEX(tblListedesclasses[],MATCH(SUMPRODUCT((tblListedesclasses[GIORNO]=tblHoraires[[#Headers],[SABATO]])*($B12>=tblListedesclasses[ORA INIZIO])*($B12<=tblListedesclasses[ORA FINE]),tblListedesclasses[UNIQUE]),tblListedesclasses[UNIQUE],0),2),0)","v":0}]
[null,"10:00:00",{"$f":"IFERROR(INDEX(tblListedesclasses[],MATCH(SUMPRODUCT((tblListedesclasses[GIORNO]=tblHoraires[[#Headers],[DOMENICA]])*($B13>=tblListedesclasses[ORA INIZIO])*($B13<=tblListedesclasses[ORA FINE]),tblListedesclasses[UNIQUE]),tblListedesclasses[UNIQUE],0),2),0)","v":0},{"$f":"IFERROR(INDEX(tblListedesclasses[],MATCH(SUMPRODUCT((tblListedesclasses[GIORNO]=tblHoraires[[#Headers],[LUNEDÌ]])*($B13>=tblListedesclasses[ORA INIZIO])*($B13<=tblListedesclasses[ORA FINE]),tblListedesclasses[UNIQUE]),tblListedesclasses[UNIQUE],0),2),0)","v":0},{"$f":"IFERROR(INDEX(tblListedesclasses[],MATCH(SUMPRODUCT((tblListedesclasses[GIORNO]=tblHoraires[[#Headers],[MARTEDÌ]])*($B13>=tblListedesclasses[ORA INIZIO])*($B13<=tblListedesclasses[ORA FINE]),tblListedesclasses[UNIQUE]),tblListedesclasses[UNIQUE],0),2),0)","v":0},{"$f":"IFERROR(INDEX(tblListedesclasses[],MATCH(SUMPRODUCT((tblListedesclasses[GIORNO]=tblHoraires[[#Headers],[MERCOLEDÌ]])*($B13>=tblListedesclasses[ORA INIZIO])*($B13<=tblListedesclasses[ORA FINE]),tblListedesclasses[UNIQUE]),tblListedesclasses[UNIQUE],0),2),0)","v":0},{"$f":"IFERROR(INDEX(tblListedesclasses[],MATCH(SUMPRODUCT((tblListedesclasses[GIORNO]=tblHoraires[[#Headers],[GIOVEDÌ]])*($B13>=tblListedesclasses[ORA INIZIO])*($B13<=tblListedesclasses[ORA FINE]),tblListedesclasses[UNIQUE]),tblListedesclasses[UNIQUE],0),2),0)","v":0},{"$f":"IFERROR(INDEX(tblListedesclasses[],MATCH(SUMPRODUCT((tblListedesclasses[GIORNO]=tblHoraires[[#Headers],[VENERDÌ]])*($B13>=tblListedesclasses[ORA INIZIO])*($B13<=tblListedesclasses[ORA FINE]),tblListedesclasses[UNIQUE]),tblListedesclasses[UNIQUE],0),2),0)","v":0},{"$f":"IFERROR(INDEX(tblListedesclasses[],MATCH(SUMPRODUCT((tblListedesclasses[GIORNO]=tblHoraires[[#Headers],[SABATO]])*($B13>=tblListedesclasses[ORA INIZIO])*($B13<=tblListedesclasses[ORA FINE]),tblListedesclasses[UNIQUE]),tblListedesclasses[UNIQUE],0),2),0)","v":0}]
[null,"10:15:00",{"$f":"IFERROR(INDEX(tblListedesclasses[],MATCH(SUMPRODUCT((tblListedesclasses[GIORNO]=tblHoraires[[#Headers],[DOMENICA]])*($B14>=tblListedesclasses[ORA INIZIO])*($B14<=tblListedesclasses[ORA FINE]),tblListedesclasses[UNIQUE]),tblListedesclasses[UNIQUE],0),2),0)","v":0},{"$f":"IFERROR(INDEX(tblListedesclasses[],MATCH(SUMPRODUCT((tblListedesclasses[GIORNO]=tblHoraires[[#Headers],[LUNEDÌ]])*($B14>=tblListedesclasses[ORA INIZIO])*($B14<=tblListedesclasses[ORA FINE]),tblListedesclasses[UNIQUE]),tblListedesclasses[UNIQUE],0),2),0)","v":0},{"$f":"IFERROR(INDEX(tblListedesclasses[],MATCH(SUMPRODUCT((tblListedesclasses[GIORNO]=tblHoraires[[#Headers],[MARTEDÌ]])*($B14>=tblListedesclasses[ORA INIZIO])*($B14<=tblListedesclasses[ORA FINE]),tblListedesclasses[UNIQUE]),tblListedesclasses[UNIQUE],0),2),0)","v":0},{"$f":"IFERROR(INDEX(tblListedesclasses[],MATCH(SUMPRODUCT((tblListedesclasses[GIORNO]=tblHoraires[[#Headers],[MERCOLEDÌ]])*($B14>=tblListedesclasses[ORA INIZIO])*($B14<=tblListedesclasses[ORA FINE]),tblListedesclasses[UNIQUE]),tblListedesclasses[UNIQUE],0),2),0)","v":0},{"$f":"IFERROR(INDEX(tblListedesclasses[],MATCH(SUMPRODUCT((tblListedesclasses[GIORNO]=tblHoraires[[#Headers],[GIOVEDÌ]])*($B14>=tblListedesclasses[ORA INIZIO])*($B14<=tblListedesclasses[ORA FINE]),tblListedesclasses[UNIQUE]),tblListedesclasses[UNIQUE],0),2),0)","v":0},{"$f":"IFERROR(INDEX(tblListedesclasses[],MATCH(SUMPRODUCT((tblListedesclasses[GIORNO]=tblHoraires[[#Headers],[VENERDÌ]])*($B14>=tblListedesclasses[ORA INIZIO])*($B14<=tblListedesclasses[ORA FINE]),tblListedesclasses[UNIQUE]),tblListedesclasses[UNIQUE],0),2),0)","v":0},{"$f":"IFERROR(INDEX(tblListedesclasses[],MATCH(SUMPRODUCT((tblListedesclasses[GIORNO]=tblHoraires[[#Headers],[SABATO]])*($B14>=tblListedesclasses[ORA INIZIO])*($B14<=tblListedesclasses[ORA FINE]),tblListedesclasses[UNIQUE]),tblListedesclasses[UNIQUE],0),2),0)","v":0}]
[null,"10:30:00",{"$f":"IFERROR(INDEX(tblListedesclasses[],MATCH(SUMPRODUCT((tblListedesclasses[GIORNO]=tblHoraires[[#Headers],[DOMENICA]])*($B15>=tblListedesclasses[ORA INIZIO])*($B15<=tblListedesclasses[ORA FINE]),tblListedesclasses[UNIQUE]),tblListedesclasses[UNIQUE],0),2),0)","v":0},{"$f":"IFERROR(INDEX(tblListedesclasses[],MATCH(SUMPRODUCT((tblListedesclasses[GIORNO]=tblHoraires[[#Headers],[LUNEDÌ]])*($B15>=tblListedesclasses[ORA INIZIO])*($B15<=tblListedesclasses[ORA FINE]),tblListedesclasses[UNIQUE]),tblListedesclasses[UNIQUE],0),2),0)","v":0},{"$f":"IFERROR(INDEX(tblListedesclasses[],MATCH(SUMPRODUCT((tblListedesclasses[GIORNO]=tblHoraires[[#Headers],[MARTEDÌ]])*($B15>=tblListedesclasses[ORA INIZIO])*($B15<=tblListedesclasses[ORA FINE]),tblListedesclasses[UNIQUE]),tblListedesclasses[UNIQUE],0),2),0)","v":0},{"$f":"IFERROR(INDEX(tblListedesclasses[],MATCH(SUMPRODUCT((tblListedesclasses[GIORNO]=tblHoraires[[#Headers],[MERCOLEDÌ]])*($B15>=tblListedesclasses[ORA INIZIO])*($B15<=tblListedesclasses[ORA FINE]),tblListedesclasses[UNIQUE]),tblListedesclasses[UNIQUE],0),2),0)","v":0},{"$f":"IFERROR(INDEX(tblListedesclasses[],MATCH(SUMPRODUCT((tblListedesclasses[GIORNO]=tblHoraires[[#Headers],[GIOVEDÌ]])*($B15>=tblListedesclasses[ORA INIZIO])*($B15<=tblListedesclasses[ORA FINE]),tblListedesclasses[UNIQUE]),tblListedesclasses[UNIQUE],0),2),0)","v":0},{"$f":"IFERROR(INDEX(tblListedesclasses[],MATCH(SUMPRODUCT((tblListedesclasses[GIORNO]=tblHoraires[[#Headers],[VENERDÌ]])*($B15>=tblListedesclasses[ORA INIZIO])*($B15<=tblListedesclasses[ORA FINE]),tblListedesclasses[UNIQUE]),tblListedesclasses[UNIQUE],0),2),0)","v":0},{"$f":"IFERROR(INDEX(tblListedesclasses[],MATCH(SUMPRODUCT((tblListedesclasses[GIORNO]=tblHoraires[[#Headers],[SABATO]])*($B15>=tblListedesclasses[ORA INIZIO])*($B15<=tblListedesclasses[ORA FINE]),tblListedesclasses[UNIQUE]),tblListedesclasses[UNIQUE],0),2),0)","v":0}]
[null,"10:45:00",{"$f":"IFERROR(INDEX(tblListedesclasses[],MATCH(SUMPRODUCT((tblListedesclasses[GIORNO]=tblHoraires[[#Headers],[DOMENICA]])*($B16>=tblListedesclasses[ORA INIZIO])*($B16<=tblListedesclasses[ORA FINE]),tblListedesclasses[UNIQUE]),tblListedesclasses[UNIQUE],0),2),0)","v":0},{"$f":"IFERROR(INDEX(tblListedesclasses[],MATCH(SUMPRODUCT((tblListedesclasses[GIORNO]=tblHoraires[[#Headers],[LUNEDÌ]])*($B16>=tblListedesclasses[ORA INIZIO])*($B16<=tblListedesclasses[ORA FINE]),tblListedesclasses[UNIQUE]),tblListedesclasses[UNIQUE],0),2),0)","v":0},{"$f":"IFERROR(INDEX(tblListedesclasses[],MATCH(SUMPRODUCT((tblListedesclasses[GIORNO]=tblHoraires[[#Headers],[MARTEDÌ]])*($B16>=tblListedesclasses[ORA INIZIO])*($B16<=tblListedesclasses[ORA FINE]),tblListedesclasses[UNIQUE]),tblListedesclasses[UNIQUE],0),2),0)","v":0},{"$f":"IFERROR(INDEX(tblListedesclasses[],MATCH(SUMPRODUCT((tblListedesclasses[GIORNO]=tblHoraires[[#Headers],[MERCOLEDÌ]])*($B16>=tblListedesclasses[ORA INIZIO])*($B16<=tblListedesclasses[ORA FINE]),tblListedesclasses[UNIQUE]),tblListedesclasses[UNIQUE],0),2),0)","v":0},{"$f":"IFERROR(INDEX(tblListedesclasses[],MATCH(SUMPRODUCT((tblListedesclasses[GIORNO]=tblHoraires[[#Headers],[GIOVEDÌ]])*($B16>=tblListedesclasses[ORA INIZIO])*($B16<=tblListedesclasses[ORA FINE]),tblListedesclasses[UNIQUE]),tblListedesclasses[UNIQUE],0),2),0)","v":0},{"$f":"IFERROR(INDEX(tblListedesclasses[],MATCH(SUMPRODUCT((tblListedesclasses[GIORNO]=tblHoraires[[#Headers],[VENERDÌ]])*($B16>=tblListedesclasses[ORA INIZIO])*($B16<=tblListedesclasses[ORA FINE]),tblListedesclasses[UNIQUE]),tblListedesclasses[UNIQUE],0),2),0)","v":0},{"$f":"IFERROR(INDEX(tblListedesclasses[],MATCH(SUMPRODUCT((tblListedesclasses[GIORNO]=tblHoraires[[#Headers],[SABATO]])*($B16>=tblListedesclasses[ORA INIZIO])*($B16<=tblListedesclasses[ORA FINE]),tblListedesclasses[UNIQUE]),tblListedesclasses[UNIQUE],0),2),0)","v":0}]
[null,"11:00:00",{"$f":"IFERROR(INDEX(tblListedesclasses[],MATCH(SUMPRODUCT((tblListedesclasses[GIORNO]=tblHoraires[[#Headers],[DOMENICA]])*($B17>=tblListedesclasses[ORA INIZIO])*($B17<=tblListedesclasses[ORA FINE]),tblListedesclasses[UNIQUE]),tblListedesclasses[UNIQUE],0),2),0)","v":0},{"$f":"IFERROR(INDEX(tblListedesclasses[],MATCH(SUMPRODUCT((tblListedesclasses[GIORNO]=tblHoraires[[#Headers],[LUNEDÌ]])*($B17>=tblListedesclasses[ORA INIZIO])*($B17<=tblListedesclasses[ORA FINE]),tblListedesclasses[UNIQUE]),tblListedesclasses[UNIQUE],0),2),0)","v":0},{"$f":"IFERROR(INDEX(tblListedesclasses[],MATCH(SUMPRODUCT((tblListedesclasses[GIORNO]=tblHoraires[[#Headers],[MARTEDÌ]])*($B17>=tblListedesclasses[ORA INIZIO])*($B17<=tblListedesclasses[ORA FINE]),tblListedesclasses[UNIQUE]),tblListedesclasses[UNIQUE],0),2),0)","v":"Spitex"},{"$f":"IFERROR(INDEX(tblListedesclasses[],MATCH(SUMPRODUCT((tblListedesclasses[GIORNO]=tblHoraires[[#Headers],[MERCOLEDÌ]])*($B17>=tblListedesclasses[ORA INIZIO])*($B17<=tblListedesclasses[ORA FINE]),tblListedesclasses[UNIQUE]),tblListedesclasses[UNIQUE],0),2),0)","v":0},{"$f":"IFERROR(INDEX(tblListedesclasses[],MATCH(SUMPRODUCT((tblListedesclasses[GIORNO]=tblHoraires[[#Headers],[GIOVEDÌ]])*($B17>=tblListedesclasses[ORA INIZIO])*($B17<=tblListedesclasses[ORA FINE]),tblListedesclasses[UNIQUE]),tblListedesclasses[UNIQUE],0),2),0)","v":0},{"$f":"IFERROR(INDEX(tblListedesclasses[],MATCH(SUMPRODUCT((tblListedesclasses[GIORNO]=tblHoraires[[#Headers],[VENERDÌ]])*($B17>=tblListedesclasses[ORA INIZIO])*($B17<=tblListedesclasses[ORA FINE]),tblListedesclasses[UNIQUE]),tblListedesclasses[UNIQUE],0),2),0)","v":0},{"$f":"IFERROR(INDEX(tblListedesclasses[],MATCH(SUMPRODUCT((tblListedesclasses[GIORNO]=tblHoraires[[#Headers],[SABATO]])*($B17>=tblListedesclasses[ORA INIZIO])*($B17<=tblListedesclasses[ORA FINE]),tblListedesclasses[UNIQUE]),tblListedesclasses[UNIQUE],0),2),0)","v":0}]
[null,"11:15:00",{"$f":"IFERROR(INDEX(tblListedesclasses[],MATCH(SUMPRODUCT((tblListedesclasses[GIORNO]=tblHoraires[[#Headers],[DOMENICA]])*($B18>=tblListedesclasses[ORA INIZIO])*($B18<=tblListedesclasses[ORA FINE]),tblListedesclasses[UNIQUE]),tblListedesclasses[UNIQUE],0),2),0)","v":0},{"$f":"IFERROR(INDEX(tblListedesclasses[],MATCH(SUMPRODUCT((tblListedesclasses[GIORNO]=tblHoraires[[#Headers],[LUNEDÌ]])*($B18>=tblListedesclasses[ORA INIZIO])*($B18<=tblListedesclasses[ORA FINE]),tblListedesclasses[UNIQUE]),tblListedesclasses[UNIQUE],0),2),0)","v":0},{"$f":"IFERROR(INDEX(tblListedesclasses[],MATCH(SUMPRODUCT((tblListedesclasses[GIORNO]=tblHoraires[[#Headers],[MARTEDÌ]])*($B18>=tblListedesclasses[ORA INIZIO])*($B18<=tblListedesclasses[ORA FINE]),tblListedesclasses[UNIQUE]),tblListedesclasses[UNIQUE],0),2),0)","v":"Spitex"},{"$f":"IFERROR(INDEX(tblListedesclasses[],MATCH(SUMPRODUCT((tblListedesclasses[GIORNO]=tblHoraires[[#Headers],[MERCOLEDÌ]])*($B18>=tblListedesclasses[ORA INIZIO])*($B18<=tblListedesclasses[ORA FINE]),tblListedesclasses[UNIQUE]),tblListedesclasses[UNIQUE],0),2),0)","v":0},{"$f":"IFERROR(INDEX(tblListedesclasses[],MATCH(SUMPRODUCT((tblListedesclasses[GIORNO]=tblHoraires[[#Headers],[GIOVEDÌ]])*($B18>=tblListedesclasses[ORA INIZIO])*($B18<=tblListedesclasses[ORA FINE]),tblListedesclasses[UNIQUE]),tblListedesclasses[UNIQUE],0),2),0)","v":0},{"$f":"IFERROR(INDEX(tblListedesclasses[],MATCH(SUMPRODUCT((tblListedesclasses[GIORNO]=tblHoraires[[#Headers],[VENERDÌ]])*($B18>=tblListedesclasses[ORA INIZIO])*($B18<=tblListedesclasses[ORA FINE]),tblListedesclasses[UNIQUE]),tblListedesclasses[UNIQUE],0),2),0)","v":0},{"$f":"IFERROR(INDEX(tblListedesclasses[],MATCH(SUMPRODUCT((tblListedesclasses[GIORNO]=tblHoraires[[#Headers],[SABATO]])*($B18>=tblListedesclasses[ORA INIZIO])*($B18<=tblListedesclasses[ORA FINE]),tblListedesclasses[UNIQUE]),tblListedesclasses[UNIQUE],0),2),0)","v":0}]
[null,"11:30:00",{"$f":"IFERROR(INDEX(tblListedesclasses[],MATCH(SUMPRODUCT((tblListedesclasses[GIORNO]=tblHoraires[[#Headers],[DOMENICA]])*($B19>=tblListedesclasses[ORA INIZIO])*($B19<=tblListedesclasses[ORA FINE]),tblListedesclasses[UNIQUE]),tblListedesclasses[UNIQUE],0),2),0)","v":0},{"$f":"IFERROR(INDEX(tblListedesclasses[],MATCH(SUMPRODUCT((tblListedesclasses[GIORNO]=tblHoraires[[#Headers],[LUNEDÌ]])*($B19>=tblListedesclasses[ORA INIZIO])*($B19<=tblListedesclasses[ORA FINE]),tblListedesclasses[UNIQUE]),tblListedesclasses[UNIQUE],0),2),0)","v":0},{"$f":"IFERROR(INDEX(tblListedesclasses[],MATCH(SUMPRODUCT((tblListedesclasses[GIORNO]=tblHoraires[[#Headers],[MARTEDÌ]])*($B19>=tblListedesclasses[ORA INIZIO])*($B19<=tblListedesclasses[ORA FINE]),tblListedesclasses[UNIQUE]),tblListedesclasses[UNIQUE],0),2),0)","v":"Spitex"},{"$f":"IFERROR(INDEX(tblListedesclasses[],MATCH(SUMPRODUCT((tblListedesclasses[GIORNO]=tblHoraires[[#Headers],[MERCOLEDÌ]])*($B19>=tblListedesclasses[ORA INIZIO])*($B19<=tblListedesclasses[ORA FINE]),tblListedesclasses[UNIQUE]),tblListedesclasses[UNIQUE],0),2),0)","v":0},{"$f":"IFERROR(INDEX(tblListedesclasses[],MATCH(SUMPRODUCT((tblListedesclasses[GIORNO]=tblHoraires[[#Headers],[GIOVEDÌ]])*($B19>=tblListedesclasses[ORA INIZIO])*($B19<=tblListedesclasses[ORA FINE]),tblListedesclasses[UNIQUE]),tblListedesclasses[UNIQUE],0),2),0)","v":0},{"$f":"IFERROR(INDEX(tblListedesclasses[],MATCH(SUMPRODUCT((tblListedesclasses[GIORNO]=tblHoraires[[#Headers],[VENERDÌ]])*($B19>=tblListedesclasses[ORA INIZIO])*($B19<=tblListedesclasses[ORA FINE]),tblListedesclasses[UNIQUE]),tblListedesclasses[UNIQUE],0),2),0)","v":0},{"$f":"IFERROR(INDEX(tblListedesclasses[],MATCH(SUMPRODUCT((tblListedesclasses[GIORNO]=tblHoraires[[#Headers],[SABATO]])*($B19>=tblListedesclasses[ORA INIZIO])*($B19<=tblListedesclasses[ORA FINE]),tblListedesclasses[UNIQUE]),tblListedesclasses[UNIQUE],0),2),0)","v":0}]
[null,"11:45:00",{"$f":"IFERROR(INDEX(tblListedesclasses[],MATCH(SUMPRODUCT((tblListedesclasses[GIORNO]=tblHoraires[[#Headers],[DOMENICA]])*($B20>=tblListedesclasses[ORA INIZIO])*($B20<=tblListedesclasses[ORA FINE]),tblListedesclasses[UNIQUE]),tblListedesclasses[UNIQUE],0),2),0)","v":0},{"$f":"IFERROR(INDEX(tblListedesclasses[],MATCH(SUMPRODUCT((tblListedesclasses[GIORNO]=tblHoraires[[#Headers],[LUNEDÌ]])*($B20>=tblListedesclasses[ORA INIZIO])*($B20<=tblListedesclasses[ORA FINE]),tblListedesclasses[UNIQUE]),tblListedesclasses[UNIQUE],0),2),0)","v":0},{"$f":"IFERROR(INDEX(tblListedesclasses[],MATCH(SUMPRODUCT((tblListedesclasses[GIORNO]=tblHoraires[[#Headers],[MARTEDÌ]])*($B20>=tblListedesclasses[ORA INIZIO])*($B20<=tblListedesclasses[ORA FINE]),tblListedesclasses[UNIQUE]),tblListedesclasses[UNIQUE],0),2),0)","v":"Spitex"},{"$f":"IFERROR(INDEX(tblListedesclasses[],MATCH(SUMPRODUCT((tblListedesclasses[GIORNO]=tblHoraires[[#Headers],[MERCOLEDÌ]])*($B20>=tblListedesclasses[ORA INIZIO])*($B20<=tblListedesclasses[ORA FINE]),tblListedesclasses[UNIQUE]),tblListedesclasses[UNIQUE],0),2),0)","v":0},{"$f":"IFERROR(INDEX(tblListedesclasses[],MATCH(SUMPRODUCT((tblListedesclasses[GIORNO]=tblHoraires[[#Headers],[GIOVEDÌ]])*($B20>=tblListedesclasses[ORA INIZIO])*($B20<=tblListedesclasses[ORA FINE]),tblListedesclasses[UNIQUE]),tblListedesclasses[UNIQUE],0),2),0)","v":0},{"$f":"IFERROR(INDEX(tblListedesclasses[],MATCH(SUMPRODUCT((tblListedesclasses[GIORNO]=tblHoraires[[#Headers],[VENERDÌ]])*($B20>=tblListedesclasses[ORA INIZIO])*($B20<=tblListedesclasses[ORA FINE]),tblListedesclasses[UNIQUE]),tblListedesclasses[UNIQUE],0),2),0)","v":0},{"$f":"IFERROR(INDEX(tblListedesclasses[],MATCH(SUMPRODUCT((tblListedesclasses[GIORNO]=tblHoraires[[#Headers],[SABATO]])*($B20>=tblListedesclasses[ORA INIZIO])*($B20<=tblListedesclasses[ORA FINE]),tblListedesclasses[UNIQUE]),tblListedesclasses[UNIQUE],0),2),0)","v":0}]
[null,"12:00:00",{"$f":"IFERROR(INDEX(tblListedesclasses[],MATCH(SUMPRODUCT((tblListedesclasses[GIORNO]=tblHoraires[[#Headers],[DOMENICA]])*($B21>=tblListedesclasses[ORA INIZIO])*($B21<=tblListedesclasses[ORA FINE]),tblListedesclasses[UNIQUE]),tblListedesclasses[UNIQUE],0),2),0)","v":0},{"$f":"IFERROR(INDEX(tblListedesclasses[],MATCH(SUMPRODUCT((tblListedesclasses[GIORNO]=tblHoraires[[#Headers],[LUNEDÌ]])*($B21>=tblListedesclasses[ORA INIZIO])*($B21<=tblListedesclasses[ORA FINE]),tblListedesclasses[UNIQUE]),tblListedesclasses[UNIQUE],0),2),0)","v":0},{"$f":"IFERROR(INDEX(tblListedesclasses[],MATCH(SUMPRODUCT((tblListedesclasses[GIORNO]=tblHoraires[[#Headers],[MARTEDÌ]])*($B21>=tblListedesclasses[ORA INIZIO])*($B21<=tblListedesclasses[ORA FINE]),tblListedesclasses[UNIQUE]),tblListedesclasses[UNIQUE],0),2),0)","v":"Spitex"},{"$f":"IFERROR(INDEX(tblListedesclasses[],MATCH(SUMPRODUCT((tblListedesclasses[GIORNO]=tblHoraires[[#Headers],[MERCOLEDÌ]])*($B21>=tblListedesclasses[ORA INIZIO])*($B21<=tblListedesclasses[ORA FINE]),tblListedesclasses[UNIQUE]),tblListedesclasses[UNIQUE],0),2),0)","v":"Chiesa"},{"$f":"IFERROR(INDEX(tblListedesclasses[],MATCH(SUMPRODUCT((tblListedesclasses[GIORNO]=tblHoraires[[#Headers],[GIOVEDÌ]])*($B21>=tblListedesclasses[ORA INIZIO])*($B21<=tblListedesclasses[ORA FINE]),tblListedesclasses[UNIQUE]),tblListedesclasses[UNIQUE],0),2),0)","v":0},{"$f":"IFERROR(INDEX(tblListedesclasses[],MATCH(SUMPRODUCT((tblListedesclasses[GIORNO]=tblHoraires[[#Headers],[VENERDÌ]])*($B21>=tblListedesclasses[ORA INIZIO])*($B21<=tblListedesclasses[ORA FINE]),tblListedesclasses[UNIQUE]),tblListedesclasses[UNIQUE],0),2),0)","v":0},{"$f":"IFERROR(INDEX(tblListedesclasses[],MATCH(SUMPRODUCT((tblListedesclasses[GIORNO]=tblHoraires[[#Headers],[SABATO]])*($B21>=tblListedesclasses[ORA INIZIO])*($B21<=tblListedesclasses[ORA FINE]),tblListedesclasses[UNIQUE]),tblListedesclasses[UNIQUE],0),2),0)","v":0}]
[null,"12:15:00",{"$f":"IFERROR(INDEX(tblListedesclasses[],MATCH(SUMPRODUCT((tblListedesclasses[GIORNO]=tblHoraires[[#Headers],[DOMENICA]])*($B22>=tblListedesclasses[ORA INIZIO])*($B22<=tblListedesclasses[ORA FINE]),tblListedesclasses[UNIQUE]),tblListedesclasses[UNIQUE],0),2),0)","v":0},{"$f":"IFERROR(INDEX(tblListedesclasses[],MATCH(SUMPRODUCT((tblListedesclasses[GIORNO]=tblHoraires[[#Headers],[LUNEDÌ]])*($B22>=tblListedesclasses[ORA INIZIO])*($B22<=tblListedesclasses[ORA FINE]),tblListedesclasses[UNIQUE]),tblListedesclasses[UNIQUE],0),2),0)","v":0},{"$f":"IFERROR(INDEX(tblListedesclasses[],MATCH(SUMPRODUCT((tblListedesclasses[GIORNO]=tblHoraires[[#Headers],[MARTEDÌ]])*($B22>=tblListedesclasses[ORA INIZIO])*($B22<=tblListedesclasses[ORA FINE]),tblListedesclasses[UNIQUE]),tblListedesclasses[UNIQUE],0),2),0)","v":0},{"$f":"IFERROR(INDEX(tblListedesclasses[],MATCH(SUMPRODUCT((tblListedesclasses[GIORNO]=tblHoraires[[#Headers],[MERCOLEDÌ]])*($B22>=tblListedesclasses[ORA INIZIO])*($B22<=tblListedesclasses[ORA FINE]),tblListedesclasses[UNIQUE]),tblListedesclasses[UNIQUE],0),2),0)","v":"Chiesa"},{"$f":"IFERROR(INDEX(tblListedesclasses[],MATCH(SUMPRODUCT((tblListedesclasses[GIORNO]=tblHoraires[[#Headers],[GIOVEDÌ]])*($B22>=tblListedesclasses[ORA INIZIO])*($B22<=tblListedesclasses[ORA FINE]),tblListedesclasses[UNIQUE]),tblListedesclasses[UNIQUE],0),2),0)","v":0},{"$f":"IFERROR(INDEX(tblListedesclasses[],MATCH(SUMPRODUCT((tblListedesclasses[GIORNO]=tblHoraires[[#Headers],[VENERDÌ]])*($B22>=tblListedesclasses[ORA INIZIO])*($B22<=tblListedesclasses[ORA FINE]),tblListedesclasses[UNIQUE]),tblListedesclasses[UNIQUE],0),2),0)","v":0},{"$f":"IFERROR(INDEX(tblListedesclasses[],MATCH(SUMPRODUCT((tblListedesclasses[GIORNO]=tblHoraires[[#Headers],[SABATO]])*($B22>=tblListedesclasses[ORA INIZIO])*($B22<=tblListedesclasses[ORA FINE]),tblListedesclasses[UNIQUE]),tblListedesclasses[UNIQUE],0),2),0)","v":0}]
[null,"12:30:00",{"$f":"IFERROR(INDEX(tblListedesclasses[],MATCH(SUMPRODUCT((tblListedesclasses[GIORNO]=tblHoraires[[#Headers],[DOMENICA]])*($B23>=tblListedesclasses[ORA INIZIO])*($B23<=tblListedesclasses[ORA FINE]),tblListedesclasses[UNIQUE]),tblListedesclasses[UNIQUE],0),2),0)","v":0},{"$f":"IFERROR(INDEX(tblListedesclasses[],MATCH(SUMPRODUCT((tblListedesclasses[GIORNO]=tblHoraires[[#Headers],[LUNEDÌ]])*($B23>=tblListedesclasses[ORA INIZIO])*($B23<=tblListedesclasses[ORA FINE]),tblListedesclasses[UNIQUE]),tblListedesclasses[UNIQUE],0),2),0)","v":"Ass. pasti"},{"$f":"IFERROR(INDEX(tblListedesclasses[],MATCH(SUMPRODUCT((tblListedesclasses[GIORNO]=tblHoraires[[#Headers],[MARTEDÌ]])*($B23>=tblListedesclasses[ORA INIZIO])*($B23<=tblListedesclasses[ORA FINE]),tblListedesclasses[UNIQUE]),tblListedesclasses[UNIQUE],0),2),0)","v":0},{"$f":"IFERROR(INDEX(tblListedesclasses[],MATCH(SUMPRODUCT((tblListedesclasses[GIORNO]=tblHoraires[[#Headers],[MERCOLEDÌ]])*($B23>=tblListedesclasses[ORA INIZIO])*($B23<=tblListedesclasses[ORA FINE]),tblListedesclasses[UNIQUE]),tblListedesclasses[UNIQUE],0),2),0)","v":"Chiesa"},{"$f":"IFERROR(INDEX(tblListedesclasses[],MATCH(SUMPRODUCT((tblListedesclasses[GIORNO]=tblHoraires[[#Headers],[GIOVEDÌ]])*($B23>=tblListedesclasses[ORA INIZIO])*($B23<=tblListedesclasses[ORA FINE]),tblListedesclasses[UNIQUE]),tblListedesclasses[UNIQUE],0),2),0)","v":"Ass. pasti"},{"$f":"IFERROR(INDEX(tblListedesclasses[],MATCH(SUMPRODUCT((tblListedesclasses[GIORNO]=tblHoraires[[#Headers],[VENERDÌ]])*($B23>=tblListedesclasses[ORA INIZIO])*($B23<=tblListedesclasses[ORA FINE]),tblListedesclasses[UNIQUE]),tblListedesclasses[UNIQUE],0),2),0)","v":0},{"$f":"IFERROR(INDEX(tblListedesclasses[],MATCH(SUMPRODUCT((tblListedesclasses[GIORNO]=tblHoraires[[#Headers],[SABATO]])*($B23>=tblListedesclasses[ORA INIZIO])*($B23<=tblListedesclasses[ORA FINE]),tblListedesclasses[UNIQUE]),tblListedesclasses[UNIQUE],0),2),0)","v":0}]
[null,"12:45:00",{"$f":"IFERROR(INDEX(tblListedesclasses[],MATCH(SUMPRODUCT((tblListedesclasses[GIORNO]=tblHoraires[[#Headers],[DOMENICA]])*($B24>=tblListedesclasses[ORA INIZIO])*($B24<=tblListedesclasses[ORA FINE]),tblListedesclasses[UNIQUE]),tblListedesclasses[UNIQUE],0),2),0)","v":0},{"$f":"IFERROR(INDEX(tblListedesclasses[],MATCH(SUMPRODUCT((tblListedesclasses[GIORNO]=tblHoraires[[#Headers],[LUNEDÌ]])*($B24>=tblListedesclasses[ORA INIZIO])*($B24<=tblListedesclasses[ORA FINE]),tblListedesclasses[UNIQUE]),tblListedesclasses[UNIQUE],0),2),0)","v":"Ass. pasti"},{"$f":"IFERROR(INDEX(tblListedesclasses[],MATCH(SUMPRODUCT((tblListedesclasses[GIORNO]=tblHoraires[[#Headers],[MARTEDÌ]])*($B24>=tblListedesclasses[ORA INIZIO])*($B24<=tblListedesclasses[ORA FINE]),tblListedesclasses[UNIQUE]),tblListedesclasses[UNIQUE],0),2),0)","v":0},{"$f":"IFERROR(INDEX(tblListedesclasses[],MATCH(SUMPRODUCT((tblListedesclasses[GIORNO]=tblHoraires[[#Headers],[MERCOLEDÌ]])*($B24>=tblListedesclasses[ORA INIZIO])*($B24<=tblListedesclasses[ORA FINE]),tblListedesclasses[UNIQUE]),tblListedesclasses[UNIQUE],0),2),0)","v":"Chiesa"},{"$f":"IFERROR(INDEX(tblListedesclasses[],MATCH(SUMPRODUCT((tblListedesclasses[GIORNO]=tblHoraires[[#Headers],[GIOVEDÌ]])*($B24>=tblListedesclasses[ORA INIZIO])*($B24<=tblListedesclasses[ORA FINE]),tblListedesclasses[UNIQUE]),tblListedesclasses[UNIQUE],0),2),0)","v":"Ass. pasti"},{"$f":"IFERROR(INDEX(tblListedesclasses[],MATCH(SUMPRODUCT((tblListedesclasses[GIORNO]=tblHoraires[[#Headers],[VENERDÌ]])*($B24>=tblListedesclasses[ORA INIZIO])*($B24<=tblListedesclasses[ORA FINE]),tblListedesclasses[UNIQUE]),tblListedesclasses[UNIQUE],0),2),0)","v":0},{"$f":"IFERROR(INDEX(tblListedesclasses[],MATCH(SUMPRODUCT((tblListedesclasses[GIORNO]=tblHoraires[[#Headers],[SABATO]])*($B24>=tblListedesclasses[ORA INIZIO])*($B24<=tblListedesclasses[ORA FINE]),tblListedesclasses[UNIQUE]),tblListedesclasses[UNIQUE],0),2),0)","v":0}]
[null,"13:00:00",{"$f":"IFERROR(INDEX(tblListedesclasses[],MATCH(SUMPRODUCT((tblListedesclasses[GIORNO]=tblHoraires[[#Headers],[DOMENICA]])*($B25>=tblListedesclasses[ORA INIZIO])*($B25<=tblListedesclasses[ORA FINE]),tblListedesclasses[UNIQUE]),tblListedesclasses[UNIQUE],0),2),0)","v":0},{"$f":"IFERROR(INDEX(tblListedesclasses[],MATCH(SUMPRODUCT((tblListedesclasses[GIORNO]=tblHoraires[[#Headers],[LUNEDÌ]])*($B25>=tblListedesclasses[ORA INIZIO])*($B25<=tblListedesclasses[ORA FINE]),tblListedesclasses[UNIQUE]),tblListedesclasses[UNIQUE],0),2),0)","v":"Ass. pasti"},{"$f":"IFERROR(INDEX(tblListedesclasses[],MATCH(SUMPRODUCT((tblListedesclasses[GIORNO]=tblHoraires[[#Headers],[MARTEDÌ]])*($B25>=tblListedesclasses[ORA INIZIO])*($B25<=tblListedesclasses[ORA FINE]),tblListedesclasses[UNIQUE]),tblListedesclasses[UNIQUE],0),2),0)","v":0},{"$f":"IFERROR(INDEX(tblListedesclasses[],MATCH(SUMPRODUCT((tblListedesclasses[GIORNO]=tblHoraires[[#Headers],[MERCOLEDÌ]])*($B25>=tblListedesclasses[ORA INIZIO])*($B25<=tblListedesclasses[ORA FINE]),tblListedesclasses[UNIQUE]),tblListedesclasses[UNIQUE],0),2),0)","v":0},{"$f":"IFERROR(INDEX(tblListedesclasses[],MATCH(SUMPRODUCT((tblListedesclasses[GIORNO]=tblHoraires[[#Headers],[GIOVEDÌ]])*($B25>=tblListedesclasses[ORA INIZIO])*($B25<=tblListedesclasses[ORA FINE]),tblListedesclasses[UNIQUE]),tblListedesclasses[UNIQUE],0),2),0)","v":"Ass. pasti"},{"$f":"IFERROR(INDEX(tblListedesclasses[],MATCH(SUMPRODUCT((tblListedesclasses[GIORNO]=tblHoraires[[#Headers],[VENERDÌ]])*($B25>=tblListedesclasses[ORA INIZIO])*($B25<=tblListedesclasses[ORA FINE]),tblListedesclasses[UNIQUE]),tblListedesclasses[UNIQUE],0),2),0)","v":0},{"$f":"IFERROR(INDEX(tblListedesclasses[],MATCH(SUMPRODUCT((tblListedesclasses[GIORNO]=tblHoraires[[#Headers],[SABATO]])*($B25>=tblListedesclasses[ORA INIZIO])*($B25<=tblListedesclasses[ORA FINE]),tblListedesclasses[UNIQUE]),tblListedesclasses[UNIQUE],0),2),0)","v":0}]
[null,"13:15:00",{"$f":"IFERROR(INDEX(tblListedesclasses[],MATCH(SUMPRODUCT((tblListedesclasses[GIORNO]=tblHoraires[[#Headers],[DOMENICA]])*($B26>=tblListedesclasses[ORA INIZIO])*($B26<=tblListedesclasses[ORA FINE]),tblListedesclasses[UNIQUE]),tblListedesclasses[UNIQUE],0),2),0)","v":0},{"$f":"IFERROR(INDEX(tblListedesclasses[],MATCH(SUMPRODUCT((tblListedesclasses[GIORNO]=tblHoraires[[#Headers],[LUNEDÌ]])*($B26>=tblListedesclasses[ORA INIZIO])*($B26<=tblListedesclasses[ORA FINE]),tblListedesclasses[UNIQUE]),tblListedesclasses[UNIQUE],0),2),0)","v":0},{"$f":"IFERROR(INDEX(tblListedesclasses[],MATCH(SUMPRODUCT((tblListedesclasses[GIORNO]=tblHoraires[[#Headers],[MARTEDÌ]])*($B26>=tblListedesclasses[ORA INIZIO])*($B26<=tblListedesclasses[ORA FINE]),tblListedesclasses[UNIQUE]),tblListedesclasses[UNIQUE],0),2),0)","v":0},{"$f":"IFERROR(INDEX(tblListedesclasses[],MATCH(SUMPRODUCT((tblListedesclasses[GIORNO]=tblHoraires[[#Headers],[MERCOLEDÌ]])*($B26>=tblListedesclasses[ORA INIZIO])*($B26<=tblListedesclasses[ORA FINE]),tblListedesclasses[UNIQUE]),tblListedesclasses[UNIQUE],0),2),0)","v":0},{"$f":"IFERROR(INDEX(tblListedesclasses[],MATCH(SUMPRODUCT((tblListedesclasses[GIORNO]=tblHoraires[[#Headers],[GIOVEDÌ]])*($B26>=tblListedesclasses[ORA INIZIO])*($B26<=tblListedesclasses[ORA FINE]),tblListedesclasses[UNIQUE]),tblListedesclasses[UNIQUE],0),2),0)","v":0},{"$f":"IFERROR(INDEX(tblListedesclasses[],MATCH(SUMPRODUCT((tblListedesclasses[GIORNO]=tblHoraires[[#Headers],[VENERDÌ]])*($B26>=tblListedesclasses[ORA INIZIO])*($B26<=tblListedesclasses[ORA FINE]),tblListedesclasses[UNIQUE]),tblListedesclasses[UNIQUE],0),2),0)","v":0},{"$f":"IFERROR(INDEX(tblListedesclasses[],MATCH(SUMPRODUCT((tblListedesclasses[GIORNO]=tblHoraires[[#Headers],[SABATO]])*($B26>=tblListedesclasses[ORA INIZIO])*($B26<=tblListedesclasses[ORA FINE]),tblListedesclasses[UNIQUE]),tblListedesclasses[UNIQUE],0),2),0)","v":0}]
[null,"13:30:00",{"$f":"IFERROR(INDEX(tblListedesclasses[],MATCH(SUMPRODUCT((tblListedesclasses[GIORNO]=tblHoraires[[#Headers],[DOMENICA]])*($B27>=tblListedesclasses[ORA INIZIO])*($B27<=tblListedesclasses[ORA FINE]),tblListedesclasses[UNIQUE]),tblListedesclasses[UNIQUE],0),2),0)","v":0},{"$f":"IFERROR(INDEX(tblListedesclasses[],MATCH(SUMPRODUCT((tblListedesclasses[GIORNO]=tblHoraires[[#Headers],[LUNEDÌ]])*($B27>=tblListedesclasses[ORA INIZIO])*($B27<=tblListedesclasses[ORA FINE]),tblListedesclasses[UNIQUE]),tblListedesclasses[UNIQUE],0),2),0)","v":0},{"$f":"IFERROR(INDEX(tblListedesclasses[],MATCH(SUMPRODUCT((tblListedesclasses[GIORNO]=tblHoraires[[#Headers],[MARTEDÌ]])*($B27>=tblListedesclasses[ORA INIZIO])*($B27<=tblListedesclasses[ORA FINE]),tblListedesclasses[UNIQUE]),tblListedesclasses[UNIQUE],0),2),0)","v":0},{"$f":"IFERROR(INDEX(tblListedesclasses[],MATCH(SUMPRODUCT((tblListedesclasses[GIORNO]=tblHoraires[[#Headers],[MERCOLEDÌ]])*($B27>=tblListedesclasses[ORA INIZIO])*($B27<=tblListedesclasses[ORA FINE]),tblListedesclasses[UNIQUE]),tblListedesclasses[UNIQUE],0),2),0)","v":0},{"$f":"IFERROR(INDEX(tblListedesclasses[],MATCH(SUMPRODUCT((tblListedesclasses[GIORNO]=tblHoraires[[#Headers],[GIOVEDÌ]])*($B27>=tblListedesclasses[ORA INIZIO])*($B27<=tblListedesclasses[ORA FINE]),tblListedesclasses[UNIQUE]),tblListedesclasses[UNIQUE],0),2),0)","v":0},{"$f":"IFERROR(INDEX(tblListedesclasses[],MATCH(SUMPRODUCT((tblListedesclasses[GIORNO]=tblHoraires[[#Headers],[VENERDÌ]])*($B27>=tblListedesclasses[ORA INIZIO])*($B27<=tblListedesclasses[ORA FINE]),tblListedesclasses[UNIQUE]),tblListedesclasses[UNIQUE],0),2),0)","v":0},{"$f":"IFERROR(INDEX(tblListedesclasses[],MATCH(SUMPRODUCT((tblListedesclasses[GIORNO]=tblHoraires[[#Headers],[SABATO]])*($B27>=tblListedesclasses[ORA INIZIO])*($B27<=tblListedesclasses[ORA FINE]),tblListedesclasses[UNIQUE]),tblListedesclasses[UNIQUE],0),2),0)","v":0}]
[null,"13:45:00",{"$f":"IFERROR(INDEX(tblListedesclasses[],MATCH(SUMPRODUCT((tblListedesclasses[GIORNO]=tblHoraires[[#Headers],[DOMENICA]])*($B28>=tblListedesclasses[ORA INIZIO])*($B28<=tblListedesclasses[ORA FINE]),tblListedesclasses[UNIQUE]),tblListedesclasses[UNIQUE],0),2),0)","v":0},{"$f":"IFERROR(INDEX(tblListedesclasses[],MATCH(SUMPRODUCT((tblListedesclasses[GIORNO]=tblHoraires[[#Headers],[LUNEDÌ]])*($B28>=tblListedesclasses[ORA INIZIO])*($B28<=tblListedesclasses[ORA FINE]),tblListedesclasses[UNIQUE]),tblListedesclasses[UNIQUE],0),2),0)","v":0},{"$f":"IFERROR(INDEX(tblListedesclasses[],MATCH(SUMPRODUCT((tblListedesclasses[GIORNO]=tblHoraires[[#Headers],[MARTEDÌ]])*($B28>=tblListedesclasses[ORA INIZIO])*($B28<=tblListedesclasses[ORA FINE]),tblListedesclasses[UNIQUE]),tblListedesclasses[UNIQUE],0),2),0)","v":0},{"$f":"IFERROR(INDEX(tblListedesclasses[],MATCH(SUMPRODUCT((tblListedesclasses[GIORNO]=tblHoraires[[#Headers],[MERCOLEDÌ]])*($B28>=tblListedesclasses[ORA INIZIO])*($B28<=tblListedesclasses[ORA FINE]),tblListedesclasses[UNIQUE]),tblListedesclasses[UNIQUE],0),2),0)","v":0},{"$f":"IFERROR(INDEX(tblListedesclasses[],MATCH(SUMPRODUCT((tblListedesclasses[GIORNO]=tblHoraires[[#Headers],[GIOVEDÌ]])*($B28>=tblListedesclasses[ORA INIZIO])*($B28<=tblListedesclasses[ORA FINE]),tblListedesclasses[UNIQUE]),tblListedesclasses[UNIQUE],0),2),0)","v":0},{"$f":"IFERROR(INDEX(tblListedesclasses[],MATCH(SUMPRODUCT((tblListedesclasses[GIORNO]=tblHoraires[[#Headers],[VENERDÌ]])*($B28>=tblListedesclasses[ORA INIZIO])*($B28<=tblListedesclasses[ORA FINE]),tblListedesclasses[UNIQUE]),tblListedesclasses[UNIQUE],0),2),0)","v":0},{"$f":"IFERROR(INDEX(tblListedesclasses[],MATCH(SUMPRODUCT((tblListedesclasses[GIORNO]=tblHoraires[[#Headers],[SABATO]])*($B28>=tblListedesclasses[ORA INIZIO])*($B28<=tblListedesclasses[ORA FINE]),tblListedesclasses[UNIQUE]),tblListedesclasses[UNIQUE],0),2),0)","v":0}]
[null,"14:00:00",{"$f":"IFERROR(INDEX(tblListedesclasses[],MATCH(SUMPRODUCT((tblListedesclasses[GIORNO]=tblHoraires[[#Headers],[DOMENICA]])*($B29>=tblListedesclasses[ORA INIZIO])*($B29<=tblListedesclasses[ORA FINE]),tblListedesclasses[UNIQUE]),tblListedesclasses[UNIQUE],0),2),0)","v":0},{"$f":"IFERROR(INDEX(tblListedesclasses[],MATCH(SUMPRODUCT((tblListedesclasses[GIORNO]=tblHoraires[[#Headers],[LUNEDÌ]])*($B29>=tblListedesclasses[ORA INIZIO])*($B29<=tblListedesclasses[ORA FINE]),tblListedesclasses[UNIQUE]),tblListedesclasses[UNIQUE],0),2),0)","v":0},{"$f":"IFERROR(INDEX(tblListedesclasses[],MATCH(SUMPRODUCT((tblListedesclasses[GIORNO]=tblHoraires[[#Headers],[MARTEDÌ]])*($B29>=tblListedesclasses[ORA INIZIO])*($B29<=tblListedesclasses[ORA FINE]),tblListedesclasses[UNIQUE]),tblListedesclasses[UNIQUE],0),2),0)","v":0},{"$f":"IFERROR(INDEX(tblListedesclasses[],MATCH(SUMPRODUCT((tblListedesclasses[GIORNO]=tblHoraires[[#Headers],[MERCOLEDÌ]])*($B29>=tblListedesclasses[ORA INIZIO])*($B29<=tblListedesclasses[ORA FINE]),tblListedesclasses[UNIQUE]),tblListedesclasses[UNIQUE],0),2),0)","v":0},{"$f":"IFERROR(INDEX(tblListedesclasses[],MATCH(SUMPRODUCT((tblListedesclasses[GIORNO]=tblHoraires[[#Headers],[GIOVEDÌ]])*($B29>=tblListedesclasses[ORA INIZIO])*($B29<=tblListedesclasses[ORA FINE]),tblListedesclasses[UNIQUE]),tblListedesclasses[UNIQUE],0),2),0)","v":0},{"$f":"IFERROR(INDEX(tblListedesclasses[],MATCH(SUMPRODUCT((tblListedesclasses[GIORNO]=tblHoraires[[#Headers],[VENERDÌ]])*($B29>=tblListedesclasses[ORA INIZIO])*($B29<=tblListedesclasses[ORA FINE]),tblListedesclasses[UNIQUE]),tblListedesclasses[UNIQUE],0),2),0)","v":0},{"$f":"IFERROR(INDEX(tblListedesclasses[],MATCH(SUMPRODUCT((tblListedesclasses[GIORNO]=tblHoraires[[#Headers],[SABATO]])*($B29>=tblListedesclasses[ORA INIZIO])*($B29<=tblListedesclasses[ORA FINE]),tblListedesclasses[UNIQUE]),tblListedesclasses[UNIQUE],0),2),0)","v":0}]
[null,"14:15:00",{"$f":"IFERROR(INDEX(tblListedesclasses[],MATCH(SUMPRODUCT((tblListedesclasses[GIORNO]=tblHoraires[[#Headers],[DOMENICA]])*($B30>=tblListedesclasses[ORA INIZIO])*($B30<=tblListedesclasses[ORA FINE]),tblListedesclasses[UNIQUE]),tblListedesclasses[UNIQUE],0),2),0)","v":0},{"$f":"IFERROR(INDEX(tblListedesclasses[],MATCH(SUMPRODUCT((tblListedesclasses[GIORNO]=tblHoraires[[#Headers],[LUNEDÌ]])*($B30>=tblListedesclasses[ORA INIZIO])*($B30<=tblListedesclasses[ORA FINE]),tblListedesclasses[UNIQUE]),tblListedesclasses[UNIQUE],0),2),0)","v":0},{"$f":"IFERROR(INDEX(tblListedesclasses[],MATCH(SUMPRODUCT((tblListedesclasses[GIORNO]=tblHoraires[[#Headers],[MARTEDÌ]])*($B30>=tblListedesclasses[ORA INIZIO])*($B30<=tblListedesclasses[ORA FINE]),tblListedesclasses[UNIQUE]),tblListedesclasses[UNIQUE],0),2),0)","v":0},{"$f":"IFERROR(INDEX(tblListedesclasses[],MATCH(SUMPRODUCT((tblListedesclasses[GIORNO]=tblHoraires[[#Headers],[MERCOLEDÌ]])*($B30>=tblListedesclasses[ORA INIZIO])*($B30<=tblListedesclasses[ORA FINE]),tblListedesclasses[UNIQUE]),tblListedesclasses[UNIQUE],0),2),0)","v":"Charles"},{"$f":"IFERROR(INDEX(tblListedesclasses[],MATCH(SUMPRODUCT((tblListedesclasses[GIORNO]=tblHoraires[[#Headers],[GIOVEDÌ]])*($B30>=tblListedesclasses[ORA INIZIO])*($B30<=tblListedesclasses[ORA FINE]),tblListedesclasses[UNIQUE]),tblListedesclasses[UNIQUE],0),2),0)","v":0},{"$f":"IFERROR(INDEX(tblListedesclasses[],MATCH(SUMPRODUCT((tblListedesclasses[GIORNO]=tblHoraires[[#Headers],[VENERDÌ]])*($B30>=tblListedesclasses[ORA INIZIO])*($B30<=tblListedesclasses[ORA FINE]),tblListedesclasses[UNIQUE]),tblListedesclasses[UNIQUE],0),2),0)","v":0},{"$f":"IFERROR(INDEX(tblListedesclasses[],MATCH(SUMPRODUCT((tblListedesclasses[GIORNO]=tblHoraires[[#Headers],[SABATO]])*($B30>=tblListedesclasses[ORA INIZIO])*($B30<=tblListedesclasses[ORA FINE]),tblListedesclasses[UNIQUE]),tblListedesclasses[UNIQUE],0),2),0)","v":0}]
[null,"14:30:00",{"$f":"IFERROR(INDEX(tblListedesclasses[],MATCH(SUMPRODUCT((tblListedesclasses[GIORNO]=tblHoraires[[#Headers],[DOMENICA]])*($B31>=tblListedesclasses[ORA INIZIO])*($B31<=tblListedesclasses[ORA FINE]),tblListedesclasses[UNIQUE]),tblListedesclasses[UNIQUE],0),2),0)","v":0},{"$f":"IFERROR(INDEX(tblListedesclasses[],MATCH(SUMPRODUCT((tblListedesclasses[GIORNO]=tblHoraires[[#Headers],[LUNEDÌ]])*($B31>=tblListedesclasses[ORA INIZIO])*($B31<=tblListedesclasses[ORA FINE]),tblListedesclasses[UNIQUE]),tblListedesclasses[UNIQUE],0),2),0)","v":0},{"$f":"IFERROR(INDEX(tblListedesclasses[],MATCH(SUMPRODUCT((tblListedesclasses[GIORNO]=tblHoraires[[#Headers],[MARTEDÌ]])*($B31>=tblListedesclasses[ORA INIZIO])*($B31<=tblListedesclasses[ORA FINE]),tblListedesclasses[UNIQUE]),tblListedesclasses[UNIQUE],0),2),0)","v":0},{"$f":"IFERROR(INDEX(tblListedesclasses[],MATCH(SUMPRODUCT((tblListedesclasses[GIORNO]=tblHoraires[[#Headers],[MERCOLEDÌ]])*($B31>=tblListedesclasses[ORA INIZIO])*($B31<=tblListedesclasses[ORA FINE]),tblListedesclasses[UNIQUE]),tblListedesclasses[UNIQUE],0),2),0)","v":"Charles"},{"$f":"IFERROR(INDEX(tblListedesclasses[],MATCH(SUMPRODUCT((tblListedesclasses[GIORNO]=tblHoraires[[#Headers],[GIOVEDÌ]])*($B31>=tblListedesclasses[ORA INIZIO])*($B31<=tblListedesclasses[ORA FINE]),tblListedesclasses[UNIQUE]),tblListedesclasses[UNIQUE],0),2),0)","v":0},{"$f":"IFERROR(INDEX(tblListedesclasses[],MATCH(SUMPRODUCT((tblListedesclasses[GIORNO]=tblHoraires[[#Headers],[VENERDÌ]])*($B31>=tblListedesclasses[ORA INIZIO])*($B31<=tblListedesclasses[ORA FINE]),tblListedesclasses[UNIQUE]),tblListedesclasses[UNIQUE],0),2),0)","v":0},{"$f":"IFERROR(INDEX(tblListedesclasses[],MATCH(SUMPRODUCT((tblListedesclasses[GIORNO]=tblHoraires[[#Headers],[SABATO]])*($B31>=tblListedesclasses[ORA INIZIO])*($B31<=tblListedesclasses[ORA FINE]),tblListedesclasses[UNIQUE]),tblListedesclasses[UNIQUE],0),2),0)","v":0}]
[null,"14:45:00",{"$f":"IFERROR(INDEX(tblListedesclasses[],MATCH(SUMPRODUCT((tblListedesclasses[GIORNO]=tblHoraires[[#Headers],[DOMENICA]])*($B32>=tblListedesclasses[ORA INIZIO])*($B32<=tblListedesclasses[ORA FINE]),tblListedesclasses[UNIQUE]),tblListedesclasses[UNIQUE],0),2),0)","v":0},{"$f":"IFERROR(INDEX(tblListedesclasses[],MATCH(SUMPRODUCT((tblListedesclasses[GIORNO]=tblHoraires[[#Headers],[LUNEDÌ]])*($B32>=tblListedesclasses[ORA INIZIO])*($B32<=tblListedesclasses[ORA FINE]),tblListedesclasses[UNIQUE]),tblListedesclasses[UNIQUE],0),2),0)","v":0},{"$f":"IFERROR(INDEX(tblListedesclasses[],MATCH(SUMPRODUCT((tblListedesclasses[GIORNO]=tblHoraires[[#Headers],[MARTEDÌ]])*($B32>=tblListedesclasses[ORA INIZIO])*($B32<=tblListedesclasses[ORA FINE]),tblListedesclasses[UNIQUE]),tblListedesclasses[UNIQUE],0),2),0)","v":0},{"$f":"IFERROR(INDEX(tblListedesclasses[],MATCH(SUMPRODUCT((tblListedesclasses[GIORNO]=tblHoraires[[#Headers],[MERCOLEDÌ]])*($B32>=tblListedesclasses[ORA INIZIO])*($B32<=tblListedesclasses[ORA FINE]),tblListedesclasses[UNIQUE]),tblListedesclasses[UNIQUE],0),2),0)","v":"Charles"},{"$f":"IFERROR(INDEX(tblListedesclasses[],MATCH(SUMPRODUCT((tblListedesclasses[GIORNO]=tblHoraires[[#Headers],[GIOVEDÌ]])*($B32>=tblListedesclasses[ORA INIZIO])*($B32<=tblListedesclasses[ORA FINE]),tblListedesclasses[UNIQUE]),tblListedesclasses[UNIQUE],0),2),0)","v":0},{"$f":"IFERROR(INDEX(tblListedesclasses[],MATCH(SUMPRODUCT((tblListedesclasses[GIORNO]=tblHoraires[[#Headers],[VENERDÌ]])*($B32>=tblListedesclasses[ORA INIZIO])*($B32<=tblListedesclasses[ORA FINE]),tblListedesclasses[UNIQUE]),tblListedesclasses[UNIQUE],0),2),0)","v":0},{"$f":"IFERROR(INDEX(tblListedesclasses[],MATCH(SUMPRODUCT((tblListedesclasses[GIORNO]=tblHoraires[[#Headers],[SABATO]])*($B32>=tblListedesclasses[ORA INIZIO])*($B32<=tblListedesclasses[ORA FINE]),tblListedesclasses[UNIQUE]),tblListedesclasses[UNIQUE],0),2),0)","v":0}]
[null,"15:00:00",{"$f":"IFERROR(INDEX(tblListedesclasses[],MATCH(SUMPRODUCT((tblListedesclasses[GIORNO]=tblHoraires[[#Headers],[DOMENICA]])*($B33>=tblListedesclasses[ORA INIZIO])*($B33<=tblListedesclasses[ORA FINE]),tblListedesclasses[UNIQUE]),tblListedesclasses[UNIQUE],0),2),0)","v":0},{"$f":"IFERROR(INDEX(tblListedesclasses[],MATCH(SUMPRODUCT((tblListedesclasses[GIORNO]=tblHoraires[[#Headers],[LUNEDÌ]])*($B33>=tblListedesclasses[ORA INIZIO])*($B33<=tblListedesclasses[ORA FINE]),tblListedesclasses[UNIQUE]),tblListedesclasses[UNIQUE],0),2),0)","v":0},{"$f":"IFERROR(INDEX(tblListedesclasses[],MATCH(SUMPRODUCT((tblListedesclasses[GIORNO]=tblHoraires[[#Headers],[MARTEDÌ]])*($B33>=tblListedesclasses[ORA INIZIO])*($B33<=tblListedesclasses[ORA FINE]),tblListedesclasses[UNIQUE]),tblListedesclasses[UNIQUE],0),2),0)","v":0},{"$f":"IFERROR(INDEX(tblListedesclasses[],MATCH(SUMPRODUCT((tblListedesclasses[GIORNO]=tblHoraires[[#Headers],[MERCOLEDÌ]])*($B33>=tblListedesclasses[ORA INIZIO])*($B33<=tblListedesclasses[ORA FINE]),tblListedesclasses[UNIQUE]),tblListedesclasses[UNIQUE],0),2),0)","v":"Charles"},{"$f":"IFERROR(INDEX(tblListedesclasses[],MATCH(SUMPRODUCT((tblListedesclasses[GIORNO]=tblHoraires[[#Headers],[GIOVEDÌ]])*($B33>=tblListedesclasses[ORA INIZIO])*($B33<=tblListedesclasses[ORA FINE]),tblListedesclasses[UNIQUE]),tblListedesclasses[UNIQUE],0),2),0)","v":0},{"$f":"IFERROR(INDEX(tblListedesclasses[],MATCH(SUMPRODUCT((tblListedesclasses[GIORNO]=tblHoraires[[#Headers],[VENERDÌ]])*($B33>=tblListedesclasses[ORA INIZIO])*($B33<=tblListedesclasses[ORA FINE]),tblListedesclasses[UNIQUE]),tblListedesclasses[UNIQUE],0),2),0)","v":0},{"$f":"IFERROR(INDEX(tblListedesclasses[],MATCH(SUMPRODUCT((tblListedesclasses[GIORNO]=tblHoraires[[#Headers],[SABATO]])*($B33>=tblListedesclasses[ORA INIZIO])*($B33<=tblListedesclasses[ORA FINE]),tblListedesclasses[UNIQUE]),tblListedesclasses[UNIQUE],0),2),0)","v":0}]
[null,"15:15:00",{"$f":"IFERROR(INDEX(tblListedesclasses[],MATCH(SUMPRODUCT((tblListedesclasses[GIORNO]=tblHoraires[[#Headers],[DOMENICA]])*($B34>=tblListedesclasses[ORA INIZIO])*($B34<=tblListedesclasses[ORA FINE]),tblListedesclasses[UNIQUE]),tblListedesclasses[UNIQUE],0),2),0)","v":0},{"$f":"IFERROR(INDEX(tblListedesclasses[],MATCH(SUMPRODUCT((tblListedesclasses[GIORNO]=tblHoraires[[#Headers],[LUNEDÌ]])*($B34>=tblListedesclasses[ORA INIZIO])*($B34<=tblListedesclasses[ORA FINE]),tblListedesclasses[UNIQUE]),tblListedesclasses[UNIQUE],0),2),0)","v":0},{"$f":"IFERROR(INDEX(tblListedesclasses[],MATCH(SUMPRODUCT((tblListedesclasses[GIORNO]=tblHoraires[[#Headers],[MARTEDÌ]])*($B34>=tblListedesclasses[ORA INIZIO])*($B34<=tblListedesclasses[ORA FINE]),tblListedesclasses[UNIQUE]),tblListedesclasses[UNIQUE],0),2),0)","v":0},{"$f":"IFERROR(INDEX(tblListedesclasses[],MATCH(SUMPRODUCT((tblListedesclasses[GIORNO]=tblHoraires[[#Headers],[MERCOLEDÌ]])*($B34>=tblListedesclasses[ORA INIZIO])*($B34<=tblListedesclasses[ORA FINE]),tblListedesclasses[UNIQUE]),tblListedesclasses[UNIQUE],0),2),0)","v":0},{"$f":"IFERROR(INDEX(tblListedesclasses[],MATCH(SUMPRODUCT((tblListedesclasses[GIORNO]=tblHoraires[[#Headers],[GIOVEDÌ]])*($B34>=tblListedesclasses[ORA INIZIO])*($B34<=tblListedesclasses[ORA FINE]),tblListedesclasses[UNIQUE]),tblListedesclasses[UNIQUE],0),2),0)","v":0},{"$f":"IFERROR(INDEX(tblListedesclasses[],MATCH(SUMPRODUCT((tblListedesclasses[GIORNO]=tblHoraires[[#Headers],[VENERDÌ]])*($B34>=tblListedesclasses[ORA INIZIO])*($B34<=tblListedesclasses[ORA FINE]),tblListedesclasses[UNIQUE]),tblListedesclasses[UNIQUE],0),2),0)","v":0},{"$f":"IFERROR(INDEX(tblListedesclasses[],MATCH(SUMPRODUCT((tblListedesclasses[GIORNO]=tblHoraires[[#Headers],[SABATO]])*($B34>=tblListedesclasses[ORA INIZIO])*($B34<=tblListedesclasses[ORA FINE]),tblListedesclasses[UNIQUE]),tblListedesclasses[UNIQUE],0),2),0)","v":0}]
[null,"15:30:00",{"$f":"IFERROR(INDEX(tblListedesclasses[],MATCH(SUMPRODUCT((tblListedesclasses[GIORNO]=tblHoraires[[#Headers],[DOMENICA]])*($B35>=tblListedesclasses[ORA INIZIO])*($B35<=tblListedesclasses[ORA FINE]),tblListedesclasses[UNIQUE]),tblListedesclasses[UNIQUE],0),2),0)","v":0},{"$f":"IFERROR(INDEX(tblListedesclasses[],MATCH(SUMPRODUCT((tblListedesclasses[GIORNO]=tblHoraires[[#Headers],[LUNEDÌ]])*($B35>=tblListedesclasses[ORA INIZIO])*($B35<=tblListedesclasses[ORA FINE]),tblListedesclasses[UNIQUE]),tblListedesclasses[UNIQUE],0),2),0)","v":0},{"$f":"IFERROR(INDEX(tblListedesclasses[],MATCH(SUMPRODUCT((tblListedesclasses[GIORNO]=tblHoraires[[#Headers],[MARTEDÌ]])*($B35>=tblListedesclasses[ORA INIZIO])*($B35<=tblListedesclasses[ORA FINE]),tblListedesclasses[UNIQUE]),tblListedesclasses[UNIQUE],0),2),0)","v":0},{"$f":"IFERROR(INDEX(tblListedesclasses[],MATCH(SUMPRODUCT((tblListedesclasses[GIORNO]=tblHoraires[[#Headers],[MERCOLEDÌ]])*($B35>=tblListedesclasses[ORA INIZIO])*($B35<=tblListedesclasses[ORA FINE]),tblListedesclasses[UNIQUE]),tblListedesclasses[UNIQUE],0),2),0)","v":0},{"$f":"IFERROR(INDEX(tblListedesclasses[],MATCH(SUMPRODUCT((tblListedesclasses[GIORNO]=tblHoraires[[#Headers],[GIOVEDÌ]])*($B35>=tblListedesclasses[ORA INIZIO])*($B35<=tblListedesclasses[ORA FINE]),tblListedesclasses[UNIQUE]),tblListedesclasses[UNIQUE],0),2),0)","v":0},{"$f":"IFERROR(INDEX(tblListedesclasses[],MATCH(SUMPRODUCT((tblListedesclasses[GIORNO]=tblHoraires[[#Headers],[VENERDÌ]])*($B35>=tblListedesclasses[ORA INIZIO])*($B35<=tblListedesclasses[ORA FINE]),tblListedesclasses[UNIQUE]),tblListedesclasses[UNIQUE],0),2),0)","v":0},{"$f":"IFERROR(INDEX(tblListedesclasses[],MATCH(SUMPRODUCT((tblListedesclasses[GIORNO]=tblHoraires[[#Headers],[SABATO]])*($B35>=tblListedesclasses[ORA INIZIO])*($B35<=tblListedesclasses[ORA FINE]),tblListedesclasses[UNIQUE]),tblListedesclasses[UNIQUE],0),2),0)","v":0}]
[null,"15:45:00",{"$f":"IFERROR(INDEX(tblListedesclasses[],MATCH(SUMPRODUCT((tblListedesclasses[GIORNO]=tblHoraires[[#Headers],[DOMENICA]])*($B36>=tblListedesclasses[ORA INIZIO])*($B36<=tblListedesclasses[ORA FINE]),tblListedesclasses[UNIQUE]),tblListedesclasses[UNIQUE],0),2),0)","v":0},{"$f":"IFERROR(INDEX(tblListedesclasses[],MATCH(SUMPRODUCT((tblListedesclasses[GIORNO]=tblHoraires[[#Headers],[LUNEDÌ]])*($B36>=tblListedesclasses[ORA INIZIO])*($B36<=tblListedesclasses[ORA FINE]),tblListedesclasses[UNIQUE]),tblListedesclasses[UNIQUE],0),2),0)","v":0},{"$f":"IFERROR(INDEX(tblListedesclasses[],MATCH(SUMPRODUCT((tblListedesclasses[GIORNO]=tblHoraires[[#Headers],[MARTEDÌ]])*($B36>=tblListedesclasses[ORA INIZIO])*($B36<=tblListedesclasses[ORA FINE]),tblListedesclasses[UNIQUE]),tblListedesclasses[UNIQUE],0),2),0)","v":0},{"$f":"IFERROR(INDEX(tblListedesclasses[],MATCH(SUMPRODUCT((tblListedesclasses[GIORNO]=tblHoraires[[#Headers],[MERCOLEDÌ]])*($B36>=tblListedesclasses[ORA INIZIO])*($B36<=tblListedesclasses[ORA FINE]),tblListedesclasses[UNIQUE]),tblListedesclasses[UNIQUE],0),2),0)","v":0},{"$f":"IFERROR(INDEX(tblListedesclasses[],MATCH(SUMPRODUCT((tblListedesclasses[GIORNO]=tblHoraires[[#Headers],[GIOVEDÌ]])*($B36>=tblListedesclasses[ORA INIZIO])*($B36<=tblListedesclasses[ORA FINE]),tblListedesclasses[UNIQUE]),tblListedesclasses[UNIQUE],0),2),0)","v":0},{"$f":"IFERROR(INDEX(tblListedesclasses[],MATCH(SUMPRODUCT((tblListedesclasses[GIORNO]=tblHoraires[[#Headers],[VENERDÌ]])*($B36>=tblListedesclasses[ORA INIZIO])*($B36<=tblListedesclasses[ORA FINE]),tblListedesclasses[UNIQUE]),tblListedesclasses[UNIQUE],0),2),0)","v":0},{"$f":"IFERROR(INDEX(tblListedesclasses[],MATCH(SUMPRODUCT((tblListedesclasses[GIORNO]=tblHoraires[[#Headers],[SABATO]])*($B36>=tblListedesclasses[ORA INIZIO])*($B36<=tblListedesclasses[ORA FINE]),tblListedesclasses[UNIQUE]),tblListedesclasses[UNIQUE],0),2),0)","v":0}]
[null,"16:00:00",{"$f":"IFERROR(INDEX(tblListedesclasses[],MATCH(SUMPRODUCT((tblListedesclasses[GIORNO]=tblHoraires[[#Headers],[DOMENICA]])*($B37>=tblListedesclasses[ORA INIZIO])*($B37<=tblListedesclasses[ORA FINE]),tblListedesclasses[UNIQUE]),tblListedesclasses[UNIQUE],0),2),0)","v":0},{"$f":"IFERROR(INDEX(tblListedesclasses[],MATCH(SUMPRODUCT((tblListedesclasses[GIORNO]=tblHoraires[[#Headers],[LUNEDÌ]])*($B37>=tblListedesclasses[ORA INIZIO])*($B37<=tblListedesclasses[ORA FINE]),tblListedesclasses[UNIQUE]),tblListedesclasses[UNIQUE],0),2),0)","v":0},{"$f":"IFERROR(INDEX(tblListedesclasses[],MATCH(SUMPRODUCT((tblListedesclasses[GIORNO]=tblHoraires[[#Headers],[MARTEDÌ]])*($B37>=tblListedesclasses[ORA INIZIO])*($B37<=tblListedesclasses[ORA FINE]),tblListedesclasses[UNIQUE]),tblListedesclasses[UNIQUE],0),2),0)","v":0},{"$f":"IFERROR(INDEX(tblListedesclasses[],MATCH(SUMPRODUCT((tblListedesclasses[GIORNO]=tblHoraires[[#Headers],[MERCOLEDÌ]])*($B37>=tblListedesclasses[ORA INIZIO])*($B37<=tblListedesclasses[ORA FINE]),tblListedesclasses[UNIQUE]),tblListedesclasses[UNIQUE],0),2),0)","v":0},{"$f":"IFERROR(INDEX(tblListedesclasses[],MATCH(SUMPRODUCT((tblListedesclasses[GIORNO]=tblHoraires[[#Headers],[GIOVEDÌ]])*($B37>=tblListedesclasses[ORA INIZIO])*($B37<=tblListedesclasses[ORA FINE]),tblListedesclasses[UNIQUE]),tblListedesclasses[UNIQUE],0),2),0)","v":0},{"$f":"IFERROR(INDEX(tblListedesclasses[],MATCH(SUMPRODUCT((tblListedesclasses[GIORNO]=tblHoraires[[#Headers],[VENERDÌ]])*($B37>=tblListedesclasses[ORA INIZIO])*($B37<=tblListedesclasses[ORA FINE]),tblListedesclasses[UNIQUE]),tblListedesclasses[UNIQUE],0),2),0)","v":0},{"$f":"IFERROR(INDEX(tblListedesclasses[],MATCH(SUMPRODUCT((tblListedesclasses[GIORNO]=tblHoraires[[#Headers],[SABATO]])*($B37>=tblListedesclasses[ORA INIZIO])*($B37<=tblListedesclasses[ORA FINE]),tblListedesclasses[UNIQUE]),tblListedesclasses[UNIQUE],0),2),0)","v":0}]
[null,"16:15:00",{"$f":"IFERROR(INDEX(tblListedesclasses[],MATCH(SUMPRODUCT((tblListedesclasses[GIORNO]=tblHoraires[[#Headers],[DOMENICA]])*($B38>=tblListedesclasses[ORA INIZIO])*($B38<=tblListedesclasses[ORA FINE]),tblListedesclasses[UNIQUE]),tblListedesclasses[UNIQUE],0),2),0)","v":0},{"$f":"IFERROR(INDEX(tblListedesclasses[],MATCH(SUMPRODUCT((tblListedesclasses[GIORNO]=tblHoraires[[#Headers],[LUNEDÌ]])*($B38>=tblListedesclasses[ORA INIZIO])*($B38<=tblListedesclasses[ORA FINE]),tblListedesclasses[UNIQUE]),tblListedesclasses[UNIQUE],0),2),0)","v":"Maria"},{"$f":"IFERROR(INDEX(tblListedesclasses[],MATCH(SUMPRODUCT((tblListedesclasses[GIORNO]=tblHoraires[[#Headers],[MARTEDÌ]])*($B38>=tblListedesclasses[ORA INIZIO])*($B38<=tblListedesclasses[ORA FINE]),tblListedesclasses[UNIQUE]),tblListedesclasses[UNIQUE],0),2),0)","v":0},{"$f":"IFERROR(INDEX(tblListedesclasses[],MATCH(SUMPRODUCT((tblListedesclasses[GIORNO]=tblHoraires[[#Headers],[MERCOLEDÌ]])*($B38>=tblListedesclasses[ORA INIZIO])*($B38<=tblListedesclasses[ORA FINE]),tblListedesclasses[UNIQUE]),tblListedesclasses[UNIQUE],0),2),0)","v":0},{"$f":"IFERROR(INDEX(tblListedesclasses[],MATCH(SUMPRODUCT((tblListedesclasses[GIORNO]=tblHoraires[[#Headers],[GIOVEDÌ]])*($B38>=tblListedesclasses[ORA INIZIO])*($B38<=tblListedesclasses[ORA FINE]),tblListedesclasses[UNIQUE]),tblListedesclasses[UNIQUE],0),2),0)","v":0},{"$f":"IFERROR(INDEX(tblListedesclasses[],MATCH(SUMPRODUCT((tblListedesclasses[GIORNO]=tblHoraires[[#Headers],[VENERDÌ]])*($B38>=tblListedesclasses[ORA INIZIO])*($B38<=tblListedesclasses[ORA FINE]),tblListedesclasses[UNIQUE]),tblListedesclasses[UNIQUE],0),2),0)","v":0},{"$f":"IFERROR(INDEX(tblListedesclasses[],MATCH(SUMPRODUCT((tblListedesclasses[GIORNO]=tblHoraires[[#Headers],[SABATO]])*($B38>=tblListedesclasses[ORA INIZIO])*($B38<=tblListedesclasses[ORA FINE]),tblListedesclasses[UNIQUE]),tblListedesclasses[UNIQUE],0),2),0)","v":0}]
[null,"16:30:00",{"$f":"IFERROR(INDEX(tblListedesclasses[],MATCH(SUMPRODUCT((tblListedesclasses[GIORNO]=tblHoraires[[#Headers],[DOMENICA]])*($B39>=tblListedesclasses[ORA INIZIO])*($B39<=tblListedesclasses[ORA FINE]),tblListedesclasses[UNIQUE]),tblListedesclasses[UNIQUE],0),2),0)","v":0},{"$f":"IFERROR(INDEX(tblListedesclasses[],MATCH(SUMPRODUCT((tblListedesclasses[GIORNO]=tblHoraires[[#Headers],[LUNEDÌ]])*($B39>=tblListedesclasses[ORA INIZIO])*($B39<=tblListedesclasses[ORA FINE]),tblListedesclasses[UNIQUE]),tblListedesclasses[UNIQUE],0),2),0)","v":"Maria"},{"$f":"IFERROR(INDEX(tblListedesclasses[],MATCH(SUMPRODUCT((tblListedesclasses[GIORNO]=tblHoraires[[#Headers],[MARTEDÌ]])*($B39>=tblListedesclasses[ORA INIZIO])*($B39<=tblListedesclasses[ORA FINE]),tblListedesclasses[UNIQUE]),tblListedesclasses[UNIQUE],0),2),0)","v":0},{"$f":"IFERROR(INDEX(tblListedesclasses[],MATCH(SUMPRODUCT((tblListedesclasses[GIORNO]=tblHoraires[[#Headers],[MERCOLEDÌ]])*($B39>=tblListedesclasses[ORA INIZIO])*($B39<=tblListedesclasses[ORA FINE]),tblListedesclasses[UNIQUE]),tblListedesclasses[UNIQUE],0),2),0)","v":0},{"$f":"IFERROR(INDEX(tblListedesclasses[],MATCH(SUMPRODUCT((tblListedesclasses[GIORNO]=tblHoraires[[#Headers],[GIOVEDÌ]])*($B39>=tblListedesclasses[ORA INIZIO])*($B39<=tblListedesclasses[ORA FINE]),tblListedesclasses[UNIQUE]),tblListedesclasses[UNIQUE],0),2),0)","v":0},{"$f":"IFERROR(INDEX(tblListedesclasses[],MATCH(SUMPRODUCT((tblListedesclasses[GIORNO]=tblHoraires[[#Headers],[VENERDÌ]])*($B39>=tblListedesclasses[ORA INIZIO])*($B39<=tblListedesclasses[ORA FINE]),tblListedesclasses[UNIQUE]),tblListedesclasses[UNIQUE],0),2),0)","v":"Bruno"},{"$f":"IFERROR(INDEX(tblListedesclasses[],MATCH(SUMPRODUCT((tblListedesclasses[GIORNO]=tblHoraires[[#Headers],[SABATO]])*($B39>=tblListedesclasses[ORA INIZIO])*($B39<=tblListedesclasses[ORA FINE]),tblListedesclasses[UNIQUE]),tblListedesclasses[UNIQUE],0),2),0)","v":0}]
[null,"16:45:00",{"$f":"IFERROR(INDEX(tblListedesclasses[],MATCH(SUMPRODUCT((tblListedesclasses[GIORNO]=tblHoraires[[#Headers],[DOMENICA]])*($B40>=tblListedesclasses[ORA INIZIO])*($B40<=tblListedesclasses[ORA FINE]),tblListedesclasses[UNIQUE]),tblListedesclasses[UNIQUE],0),2),0)","v":0},{"$f":"IFERROR(INDEX(tblListedesclasses[],MATCH(SUMPRODUCT((tblListedesclasses[GIORNO]=tblHoraires[[#Headers],[LUNEDÌ]])*($B40>=tblListedesclasses[ORA INIZIO])*($B40<=tblListedesclasses[ORA FINE]),tblListedesclasses[UNIQUE]),tblListedesclasses[UNIQUE],0),2),0)","v":"Maria"},{"$f":"IFERROR(INDEX(tblListedesclasses[],MATCH(SUMPRODUCT((tblListedesclasses[GIORNO]=tblHoraires[[#Headers],[MARTEDÌ]])*($B40>=tblListedesclasses[ORA INIZIO])*($B40<=tblListedesclasses[ORA FINE]),tblListedesclasses[UNIQUE]),tblListedesclasses[UNIQUE],0),2),0)","v":0},{"$f":"IFERROR(INDEX(tblListedesclasses[],MATCH(SUMPRODUCT((tblListedesclasses[GIORNO]=tblHoraires[[#Headers],[MERCOLEDÌ]])*($B40>=tblListedesclasses[ORA INIZIO])*($B40<=tblListedesclasses[ORA FINE]),tblListedesclasses[UNIQUE]),tblListedesclasses[UNIQUE],0),2),0)","v":0},{"$f":"IFERROR(INDEX(tblListedesclasses[],MATCH(SUMPRODUCT((tblListedesclasses[GIORNO]=tblHoraires[[#Headers],[GIOVEDÌ]])*($B40>=tblListedesclasses[ORA INIZIO])*($B40<=tblListedesclasses[ORA FINE]),tblListedesclasses[UNIQUE]),tblListedesclasses[UNIQUE],0),2),0)","v":0},{"$f":"IFERROR(INDEX(tblListedesclasses[],MATCH(SUMPRODUCT((tblListedesclasses[GIORNO]=tblHoraires[[#Headers],[VENERDÌ]])*($B40>=tblListedesclasses[ORA INIZIO])*($B40<=tblListedesclasses[ORA FINE]),tblListedesclasses[UNIQUE]),tblListedesclasses[UNIQUE],0),2),0)","v":"Bruno"},{"$f":"IFERROR(INDEX(tblListedesclasses[],MATCH(SUMPRODUCT((tblListedesclasses[GIORNO]=tblHoraires[[#Headers],[SABATO]])*($B40>=tblListedesclasses[ORA INIZIO])*($B40<=tblListedesclasses[ORA FINE]),tblListedesclasses[UNIQUE]),tblListedesclasses[UNIQUE],0),2),0)","v":0}]
[null,"17:00:00",{"$f":"IFERROR(INDEX(tblListedesclasses[],MATCH(SUMPRODUCT((tblListedesclasses[GIORNO]=tblHoraires[[#Headers],[DOMENICA]])*($B41>=tblListedesclasses[ORA INIZIO])*($B41<=tblListedesclasses[ORA FINE]),tblListedesclasses[UNIQUE]),tblListedesclasses[UNIQUE],0),2),0)","v":0},{"$f":"IFERROR(INDEX(tblListedesclasses[],MATCH(SUMPRODUCT((tblListedesclasses[GIORNO]=tblHoraires[[#Headers],[LUNEDÌ]])*($B41>=tblListedesclasses[ORA INIZIO])*($B41<=tblListedesclasses[ORA FINE]),tblListedesclasses[UNIQUE]),tblListedesclasses[UNIQUE],0),2),0)","v":"Maria"},{"$f":"IFERROR(INDEX(tblListedesclasses[],MATCH(SUMPRODUCT((tblListedesclasses[GIORNO]=tblHoraires[[#Headers],[MARTEDÌ]])*($B41>=tblListedesclasses[ORA INIZIO])*($B41<=tblListedesclasses[ORA FINE]),tblListedesclasses[UNIQUE]),tblListedesclasses[UNIQUE],0),2),0)","v":0},{"$f":"IFERROR(INDEX(tblListedesclasses[],MATCH(SUMPRODUCT((tblListedesclasses[GIORNO]=tblHoraires[[#Headers],[MERCOLEDÌ]])*($B41>=tblListedesclasses[ORA INIZIO])*($B41<=tblListedesclasses[ORA FINE]),tblListedesclasses[UNIQUE]),tblListedesclasses[UNIQUE],0),2),0)","v":0},{"$f":"IFERROR(INDEX(tblListedesclasses[],MATCH(SUMPRODUCT((tblListedesclasses[GIORNO]=tblHoraires[[#Headers],[GIOVEDÌ]])*($B41>=tblListedesclasses[ORA INIZIO])*($B41<=tblListedesclasses[ORA FINE]),tblListedesclasses[UNIQUE]),tblListedesclasses[UNIQUE],0),2),0)","v":0},{"$f":"IFERROR(INDEX(tblListedesclasses[],MATCH(SUMPRODUCT((tblListedesclasses[GIORNO]=tblHoraires[[#Headers],[VENERDÌ]])*($B41>=tblListedesclasses[ORA INIZIO])*($B41<=tblListedesclasses[ORA FINE]),tblListedesclasses[UNIQUE]),tblListedesclasses[UNIQUE],0),2),0)","v":"Bruno"},{"$f":"IFERROR(INDEX(tblListedesclasses[],MATCH(SUMPRODUCT((tblListedesclasses[GIORNO]=tblHoraires[[#Headers],[SABATO]])*($B41>=tblListedesclasses[ORA INIZIO])*($B41<=tblListedesclasses[ORA FINE]),tblListedesclasses[UNIQUE]),tblListedesclasses[UNIQUE],0),2),0)","v":0}]
[null,"17:15:00",{"$f":"IFERROR(INDEX(tblListedesclasses[],MATCH(SUMPRODUCT((tblListedesclasses[GIORNO]=tblHoraires[[#Headers],[DOMENICA]])*($B42>=tblListedesclasses[ORA INIZIO])*($B42<=tblListedesclasses[ORA FINE]),tblListedesclasses[UNIQUE]),tblListedesclasses[UNIQUE],0),2),0)","v":0},{"$f":"IFERROR(INDEX(tblListedesclasses[],MATCH(SUMPRODUCT((tblListedesclasses[GIORNO]=tblHoraires[[#Headers],[LUNEDÌ]])*($B42>=tblListedesclasses[ORA INIZIO])*($B42<=tblListedesclasses[ORA FINE]),tblListedesclasses[UNIQUE]),tblListedesclasses[UNIQUE],0),2),0)","v":0},{"$f":"IFERROR(INDEX(tblListedesclasses[],MATCH(SUMPRODUCT((tblListedesclasses[GIORNO]=tblHoraires[[#Headers],[MARTEDÌ]])*($B42>=tblListedesclasses[ORA INIZIO])*($B42<=tblListedesclasses[ORA FINE]),tblListedesclasses[UNIQUE]),tblListedesclasses[UNIQUE],0),2),0)","v":0},{"$f":"IFERROR(INDEX(tblListedesclasses[],MATCH(SUMPRODUCT((tblListedesclasses[GIORNO]=tblHoraires[[#Headers],[MERCOLEDÌ]])*($B42>=tblListedesclasses[ORA INIZIO])*($B42<=tblListedesclasses[ORA FINE]),tblListedesclasses[UNIQUE]),tblListedesclasses[UNIQUE],0),2),0)","v":0},{"$f":"IFERROR(INDEX(tblListedesclasses[],MATCH(SUMPRODUCT((tblListedesclasses[GIORNO]=tblHoraires[[#Headers],[GIOVEDÌ]])*($B42>=tblListedesclasses[ORA INIZIO])*($B42<=tblListedesclasses[ORA FINE]),tblListedesclasses[UNIQUE]),tblListedesclasses[UNIQUE],0),2),0)","v":0},{"$f":"IFERROR(INDEX(tblListedesclasses[],MATCH(SUMPRODUCT((tblListedesclasses[GIORNO]=tblHoraires[[#Headers],[VENERDÌ]])*($B42>=tblListedesclasses[ORA INIZIO])*($B42<=tblListedesclasses[ORA FINE]),tblListedesclasses[UNIQUE]),tblListedesclasses[UNIQUE],0),2),0)","v":"Bruno"},{"$f":"IFERROR(INDEX(tblListedesclasses[],MATCH(SUMPRODUCT((tblListedesclasses[GIORNO]=tblHoraires[[#Headers],[SABATO]])*($B42>=tblListedesclasses[ORA INIZIO])*($B42<=tblListedesclasses[ORA FINE]),tblListedesclasses[UNIQUE]),tblListedesclasses[UNIQUE],0),2),0)","v":0}]
[null,"17:30:00",{"$f":"IFERROR(INDEX(tblListedesclasses[],MATCH(SUMPRODUCT((tblListedesclasses[GIORNO]=tblHoraires[[#Headers],[DOMENICA]])*($B43>=tblListedesclasses[ORA INIZIO])*($B43<=tblListedesclasses[ORA FINE]),tblListedesclasses[UNIQUE]),tblListedesclasses[UNIQUE],0),2),0)","v":0},{"$f":"IFERROR(INDEX(tblListedesclasses[],MATCH(SUMPRODUCT((tblListedesclasses[GIORNO]=tblHoraires[[#Headers],[LUNEDÌ]])*($B43>=tblListedesclasses[ORA INIZIO])*($B43<=tblListedesclasses[ORA FINE]),tblListedesclasses[UNIQUE]),tblListedesclasses[UNIQUE],0),2),0)","v":0},{"$f":"IFERROR(INDEX(tblListedesclasses[],MATCH(SUMPRODUCT((tblListedesclasses[GIORNO]=tblHoraires[[#Headers],[MARTEDÌ]])*($B43>=tblListedesclasses[ORA INIZIO])*($B43<=tblListedesclasses[ORA FINE]),tblListedesclasses[UNIQUE]),tblListedesclasses[UNIQUE],0),2),0)","v":0},{"$f":"IFERROR(INDEX(tblListedesclasses[],MATCH(SUMPRODUCT((tblListedesclasses[GIORNO]=tblHoraires[[#Headers],[MERCOLEDÌ]])*($B43>=tblListedesclasses[ORA INIZIO])*($B43<=tblListedesclasses[ORA FINE]),tblListedesclasses[UNIQUE]),tblListedesclasses[UNIQUE],0),2),0)","v":0},{"$f":"IFERROR(INDEX(tblListedesclasses[],MATCH(SUMPRODUCT((tblListedesclasses[GIORNO]=tblHoraires[[#Headers],[GIOVEDÌ]])*($B43>=tblListedesclasses[ORA INIZIO])*($B43<=tblListedesclasses[ORA FINE]),tblListedesclasses[UNIQUE]),tblListedesclasses[UNIQUE],0),2),0)","v":0},{"$f":"IFERROR(INDEX(tblListedesclasses[],MATCH(SUMPRODUCT((tblListedesclasses[GIORNO]=tblHoraires[[#Headers],[VENERDÌ]])*($B43>=tblListedesclasses[ORA INIZIO])*($B43<=tblListedesclasses[ORA FINE]),tblListedesclasses[UNIQUE]),tblListedesclasses[UNIQUE],0),2),0)","v":"Bruno"},{"$f":"IFERROR(INDEX(tblListedesclasses[],MATCH(SUMPRODUCT((tblListedesclasses[GIORNO]=tblHoraires[[#Headers],[SABATO]])*($B43>=tblListedesclasses[ORA INIZIO])*($B43<=tblListedesclasses[ORA FINE]),tblListedesclasses[UNIQUE]),tblListedesclasses[UNIQUE],0),2),0)","v":0}]
[null,"17:45:00",{"$f":"IFERROR(INDEX(tblListedesclasses[],MATCH(SUMPRODUCT((tblListedesclasses[GIORNO]=tblHoraires[[#Headers],[DOMENICA]])*($B44>=tblListedesclasses[ORA INIZIO])*($B44<=tblListedesclasses[ORA FINE]),tblListedesclasses[UNIQUE]),tblListedesclasses[UNIQUE],0),2),0)","v":0},{"$f":"IFERROR(INDEX(tblListedesclasses[],MATCH(SUMPRODUCT((tblListedesclasses[GIORNO]=tblHoraires[[#Headers],[LUNEDÌ]])*($B44>=tblListedesclasses[ORA INIZIO])*($B44<=tblListedesclasses[ORA FINE]),tblListedesclasses[UNIQUE]),tblListedesclasses[UNIQUE],0),2),0)","v":0},{"$f":"IFERROR(INDEX(tblListedesclasses[],MATCH(SUMPRODUCT((tblListedesclasses[GIORNO]=tblHoraires[[#Headers],[MARTEDÌ]])*($B44>=tblListedesclasses[ORA INIZIO])*($B44<=tblListedesclasses[ORA FINE]),tblListedesclasses[UNIQUE]),tblListedesclasses[UNIQUE],0),2),0)","v":0},{"$f":"IFERROR(INDEX(tblListedesclasses[],MATCH(SUMPRODUCT((tblListedesclasses[GIORNO]=tblHoraires[[#Headers],[MERCOLEDÌ]])*($B44>=tblListedesclasses[ORA INIZIO])*($B44<=tblListedesclasses[ORA FINE]),tblListedesclasses[UNIQUE]),tblListedesclasses[UNIQUE],0),2),0)","v":0},{"$f":"IFERROR(INDEX(tblListedesclasses[],MATCH(SUMPRODUCT((tblListedesclasses[GIORNO]=tblHoraires[[#Headers],[GIOVEDÌ]])*($B44>=tblListedesclasses[ORA INIZIO])*($B44<=tblListedesclasses[ORA FINE]),tblListedesclasses[UNIQUE]),tblListedesclasses[UNIQUE],0),2),0)","v":0},{"$f":"IFERROR(INDEX(tblListedesclasses[],MATCH(SUMPRODUCT((tblListedesclasses[GIORNO]=tblHoraires[[#Headers],[VENERDÌ]])*($B44>=tblListedesclasses[ORA INIZIO])*($B44<=tblListedesclasses[ORA FINE]),tblListedesclasses[UNIQUE]),tblListedesclasses[UNIQUE],0),2),0)","v":0},{"$f":"IFERROR(INDEX(tblListedesclasses[],MATCH(SUMPRODUCT((tblListedesclasses[GIORNO]=tblHoraires[[#Headers],[SABATO]])*($B44>=tblListedesclasses[ORA INIZIO])*($B44<=tblListedesclasses[ORA FINE]),tblListedesclasses[UNIQUE]),tblListedesclasses[UNIQUE],0),2),0)","v":0}]
[null,"18:00:00",{"$f":"IFERROR(INDEX(tblListedesclasses[],MATCH(SUMPRODUCT((tblListedesclasses[GIORNO]=tblHoraires[[#Headers],[DOMENICA]])*($B45>=tblListedesclasses[ORA INIZIO])*($B45<=tblListedesclasses[ORA FINE]),tblListedesclasses[UNIQUE]),tblListedesclasses[UNIQUE],0),2),0)","v":0},{"$f":"IFERROR(INDEX(tblListedesclasses[],MATCH(SUMPRODUCT((tblListedesclasses[GIORNO]=tblHoraires[[#Headers],[LUNEDÌ]])*($B45>=tblListedesclasses[ORA INIZIO])*($B45<=tblListedesclasses[ORA FINE]),tblListedesclasses[UNIQUE]),tblListedesclasses[UNIQUE],0),2),0)","v":0},{"$f":"IFERROR(INDEX(tblListedesclasses[],MATCH(SUMPRODUCT((tblListedesclasses[GIORNO]=tblHoraires[[#Headers],[MARTEDÌ]])*($B45>=tblListedesclasses[ORA INIZIO])*($B45<=tblListedesclasses[ORA FINE]),tblListedesclasses[UNIQUE]),tblListedesclasses[UNIQUE],0),2),0)","v":0},{"$f":"IFERROR(INDEX(tblListedesclasses[],MATCH(SUMPRODUCT((tblListedesclasses[GIORNO]=tblHoraires[[#Headers],[MERCOLEDÌ]])*($B45>=tblListedesclasses[ORA INIZIO])*($B45<=tblListedesclasses[ORA FINE]),tblListedesclasses[UNIQUE]),tblListedesclasses[UNIQUE],0),2),0)","v":0},{"$f":"IFERROR(INDEX(tblListedesclasses[],MATCH(SUMPRODUCT((tblListedesclasses[GIORNO]=tblHoraires[[#Headers],[GIOVEDÌ]])*($B45>=tblListedesclasses[ORA INIZIO])*($B45<=tblListedesclasses[ORA FINE]),tblListedesclasses[UNIQUE]),tblListedesclasses[UNIQUE],0),2),0)","v":0},{"$f":"IFERROR(INDEX(tblListedesclasses[],MATCH(SUMPRODUCT((tblListedesclasses[GIORNO]=tblHoraires[[#Headers],[VENERDÌ]])*($B45>=tblListedesclasses[ORA INIZIO])*($B45<=tblListedesclasses[ORA FINE]),tblListedesclasses[UNIQUE]),tblListedesclasses[UNIQUE],0),2),0)","v":0},{"$f":"IFERROR(INDEX(tblListedesclasses[],MATCH(SUMPRODUCT((tblListedesclasses[GIORNO]=tblHoraires[[#Headers],[SABATO]])*($B45>=tblListedesclasses[ORA INIZIO])*($B45<=tblListedesclasses[ORA FINE]),tblListedesclasses[UNIQUE]),tblListedesclasses[UNIQUE],0),2),0)","v":0}]
[null,"18:15:00",{"$f":"IFERROR(INDEX(tblListedesclasses[],MATCH(SUMPRODUCT((tblListedesclasses[GIORNO]=tblHoraires[[#Headers],[DOMENICA]])*($B46>=tblListedesclasses[ORA INIZIO])*($B46<=tblListedesclasses[ORA FINE]),tblListedesclasses[UNIQUE]),tblListedesclasses[UNIQUE],0),2),0)","v":0},{"$f":"IFERROR(INDEX(tblListedesclasses[],MATCH(SUMPRODUCT((tblListedesclasses[GIORNO]=tblHoraires[[#Headers],[LUNEDÌ]])*($B46>=tblListedesclasses[ORA INIZIO])*($B46<=tblListedesclasses[ORA FINE]),tblListedesclasses[UNIQUE]),tblListedesclasses[UNIQUE],0),2),0)","v":0},{"$f":"IFERROR(INDEX(tblListedesclasses[],MATCH(SUMPRODUCT((tblListedesclasses[GIORNO]=tblHoraires[[#Headers],[MARTEDÌ]])*($B46>=tblListedesclasses[ORA INIZIO])*($B46<=tblListedesclasses[ORA FINE]),tblListedesclasses[UNIQUE]),tblListedesclasses[UNIQUE],0),2),0)","v":0},{"$f":"IFERROR(INDEX(tblListedesclasses[],MATCH(SUMPRODUCT((tblListedesclasses[GIORNO]=tblHoraires[[#Headers],[MERCOLEDÌ]])*($B46>=tblListedesclasses[ORA INIZIO])*($B46<=tblListedesclasses[ORA FINE]),tblListedesclasses[UNIQUE]),tblListedesclasses[UNIQUE],0),2),0)","v":0},{"$f":"IFERROR(INDEX(tblListedesclasses[],MATCH(SUMPRODUCT((tblListedesclasses[GIORNO]=tblHoraires[[#Headers],[GIOVEDÌ]])*($B46>=tblListedesclasses[ORA INIZIO])*($B46<=tblListedesclasses[ORA FINE]),tblListedesclasses[UNIQUE]),tblListedesclasses[UNIQUE],0),2),0)","v":0},{"$f":"IFERROR(INDEX(tblListedesclasses[],MATCH(SUMPRODUCT((tblListedesclasses[GIORNO]=tblHoraires[[#Headers],[VENERDÌ]])*($B46>=tblListedesclasses[ORA INIZIO])*($B46<=tblListedesclasses[ORA FINE]),tblListedesclasses[UNIQUE]),tblListedesclasses[UNIQUE],0),2),0)","v":0},{"$f":"IFERROR(INDEX(tblListedesclasses[],MATCH(SUMPRODUCT((tblListedesclasses[GIORNO]=tblHoraires[[#Headers],[SABATO]])*($B46>=tblListedesclasses[ORA INIZIO])*($B46<=tblListedesclasses[ORA FINE]),tblListedesclasses[UNIQUE]),tblListedesclasses[UNIQUE],0),2),0)","v":0}]
[null,"18:30:00",{"$f":"IFERROR(INDEX(tblListedesclasses[],MATCH(SUMPRODUCT((tblListedesclasses[GIORNO]=tblHoraires[[#Headers],[DOMENICA]])*($B47>=tblListedesclasses[ORA INIZIO])*($B47<=tblListedesclasses[ORA FINE]),tblListedesclasses[UNIQUE]),tblListedesclasses[UNIQUE],0),2),0)","v":0},{"$f":"IFERROR(INDEX(tblListedesclasses[],MATCH(SUMPRODUCT((tblListedesclasses[GIORNO]=tblHoraires[[#Headers],[LUNEDÌ]])*($B47>=tblListedesclasses[ORA INIZIO])*($B47<=tblListedesclasses[ORA FINE]),tblListedesclasses[UNIQUE]),tblListedesclasses[UNIQUE],0),2),0)","v":0},{"$f":"IFERROR(INDEX(tblListedesclasses[],MATCH(SUMPRODUCT((tblListedesclasses[GIORNO]=tblHoraires[[#Headers],[MARTEDÌ]])*($B47>=tblListedesclasses[ORA INIZIO])*($B47<=tblListedesclasses[ORA FINE]),tblListedesclasses[UNIQUE]),tblListedesclasses[UNIQUE],0),2),0)","v":0},{"$f":"IFERROR(INDEX(tblListedesclasses[],MATCH(SUMPRODUCT((tblListedesclasses[GIORNO]=tblHoraires[[#Headers],[MERCOLEDÌ]])*($B47>=tblListedesclasses[ORA INIZIO])*($B47<=tblListedesclasses[ORA FINE]),tblListedesclasses[UNIQUE]),tblListedesclasses[UNIQUE],0),2),0)","v":0},{"$f":"IFERROR(INDEX(tblListedesclasses[],MATCH(SUMPRODUCT((tblListedesclasses[GIORNO]=tblHoraires[[#Headers],[GIOVEDÌ]])*($B47>=tblListedesclasses[ORA INIZIO])*($B47<=tblListedesclasses[ORA FINE]),tblListedesclasses[UNIQUE]),tblListedesclasses[UNIQUE],0),2),0)","v":0},{"$f":"IFERROR(INDEX(tblListedesclasses[],MATCH(SUMPRODUCT((tblListedesclasses[GIORNO]=tblHoraires[[#Headers],[VENERDÌ]])*($B47>=tblListedesclasses[ORA INIZIO])*($B47<=tblListedesclasses[ORA FINE]),tblListedesclasses[UNIQUE]),tblListedesclasses[UNIQUE],0),2),0)","v":0},{"$f":"IFERROR(INDEX(tblListedesclasses[],MATCH(SUMPRODUCT((tblListedesclasses[GIORNO]=tblHoraires[[#Headers],[SABATO]])*($B47>=tblListedesclasses[ORA INIZIO])*($B47<=tblListedesclasses[ORA FINE]),tblListedesclasses[UNIQUE]),tblListedesclasses[UNIQUE],0),2),0)","v":0}]
[null,"18:45:00",{"$f":"IFERROR(INDEX(tblListedesclasses[],MATCH(SUMPRODUCT((tblListedesclasses[GIORNO]=tblHoraires[[#Headers],[DOMENICA]])*($B48>=tblListedesclasses[ORA INIZIO])*($B48<=tblListedesclasses[ORA FINE]),tblListedesclasses[UNIQUE]),tblListedesclasses[UNIQUE],0),2),0)","v":0},{"$f":"IFERROR(INDEX(tblListedesclasses[],MATCH(SUMPRODUCT((tblListedesclasses[GIORNO]=tblHoraires[[#Headers],[LUNEDÌ]])*($B48>=tblListedesclasses[ORA INIZIO])*($B48<=tblListedesclasses[ORA FINE]),tblListedesclasses[UNIQUE]),tblListedesclasses[UNIQUE],0),2),0)","v":0},{"$f":"IFERROR(INDEX(tblListedesclasses[],MATCH(SUMPRODUCT((tblListedesclasses[GIORNO]=tblHoraires[[#Headers],[MARTEDÌ]])*($B48>=tblListedesclasses[ORA INIZIO])*($B48<=tblListedesclasses[ORA FINE]),tblListedesclasses[UNIQUE]),tblListedesclasses[UNIQUE],0),2),0)","v":0},{"$f":"IFERROR(INDEX(tblListedesclasses[],MATCH(SUMPRODUCT((tblListedesclasses[GIORNO]=tblHoraires[[#Headers],[MERCOLEDÌ]])*($B48>=tblListedesclasses[ORA INIZIO])*($B48<=tblListedesclasses[ORA FINE]),tblListedesclasses[UNIQUE]),tblListedesclasses[UNIQUE],0),2),0)","v":0},{"$f":"IFERROR(INDEX(tblListedesclasses[],MATCH(SUMPRODUCT((tblListedesclasses[GIORNO]=tblHoraires[[#Headers],[GIOVEDÌ]])*($B48>=tblListedesclasses[ORA INIZIO])*($B48<=tblListedesclasses[ORA FINE]),tblListedesclasses[UNIQUE]),tblListedesclasses[UNIQUE],0),2),0)","v":0},{"$f":"IFERROR(INDEX(tblListedesclasses[],MATCH(SUMPRODUCT((tblListedesclasses[GIORNO]=tblHoraires[[#Headers],[VENERDÌ]])*($B48>=tblListedesclasses[ORA INIZIO])*($B48<=tblListedesclasses[ORA FINE]),tblListedesclasses[UNIQUE]),tblListedesclasses[UNIQUE],0),2),0)","v":0},{"$f":"IFERROR(INDEX(tblListedesclasses[],MATCH(SUMPRODUCT((tblListedesclasses[GIORNO]=tblHoraires[[#Headers],[SABATO]])*($B48>=tblListedesclasses[ORA INIZIO])*($B48<=tblListedesclasses[ORA FINE]),tblListedesclasses[UNIQUE]),tblListedesclasses[UNIQUE],0),2),0)","v":0}]
[null,"19:00:00",{"$f":"IFERROR(INDEX(tblListedesclasses[],MATCH(SUMPRODUCT((tblListedesclasses[GIORNO]=tblHoraires[[#Headers],[DOMENICA]])*($B49>=tblListedesclasses[ORA INIZIO])*($B49<=tblListedesclasses[ORA FINE]),tblListedesclasses[UNIQUE]),tblListedesclasses[UNIQUE],0),2),0)","v":0},{"$f":"IFERROR(INDEX(tblListedesclasses[],MATCH(SUMPRODUCT((tblListedesclasses[GIORNO]=tblHoraires[[#Headers],[LUNEDÌ]])*($B49>=tblListedesclasses[ORA INIZIO])*($B49<=tblListedesclasses[ORA FINE]),tblListedesclasses[UNIQUE]),tblListedesclasses[UNIQUE],0),2),0)","v":0},{"$f":"IFERROR(INDEX(tblListedesclasses[],MATCH(SUMPRODUCT((tblListedesclasses[GIORNO]=tblHoraires[[#Headers],[MARTEDÌ]])*($B49>=tblListedesclasses[ORA INIZIO])*($B49<=tblListedesclasses[ORA FINE]),tblListedesclasses[UNIQUE]),tblListedesclasses[UNIQUE],0),2),0)","v":0},{"$f":"IFERROR(INDEX(tblListedesclasses[],MATCH(SUMPRODUCT((tblListedesclasses[GIORNO]=tblHoraires[[#Headers],[MERCOLEDÌ]])*($B49>=tblListedesclasses[ORA INIZIO])*($B49<=tblListedesclasses[ORA FINE]),tblListedesclasses[UNIQUE]),tblListedesclasses[UNIQUE],0),2),0)","v":0},{"$f":"IFERROR(INDEX(tblListedesclasses[],MATCH(SUMPRODUCT((tblListedesclasses[GIORNO]=tblHoraires[[#Headers],[GIOVEDÌ]])*($B49>=tblListedesclasses[ORA INIZIO])*($B49<=tblListedesclasses[ORA FINE]),tblListedesclasses[UNIQUE]),tblListedesclasses[UNIQUE],0),2),0)","v":0},{"$f":"IFERROR(INDEX(tblListedesclasses[],MATCH(SUMPRODUCT((tblListedesclasses[GIORNO]=tblHoraires[[#Headers],[VENERDÌ]])*($B49>=tblListedesclasses[ORA INIZIO])*($B49<=tblListedesclasses[ORA FINE]),tblListedesclasses[UNIQUE]),tblListedesclasses[UNIQUE],0),2),0)","v":0},{"$f":"IFERROR(INDEX(tblListedesclasses[],MATCH(SUMPRODUCT((tblListedesclasses[GIORNO]=tblHoraires[[#Headers],[SABATO]])*($B49>=tblListedesclasses[ORA INIZIO])*($B49<=tblListedesclasses[ORA FINE]),tblListedesclasses[UNIQUE]),tblListedesclasses[UNIQUE],0),2),0)","v":0}]
[null,"19:15:00",{"$f":"IFERROR(INDEX(tblListedesclasses[],MATCH(SUMPRODUCT((tblListedesclasses[GIORNO]=tblHoraires[[#Headers],[DOMENICA]])*($B50>=tblListedesclasses[ORA INIZIO])*($B50<=tblListedesclasses[ORA FINE]),tblListedesclasses[UNIQUE]),tblListedesclasses[UNIQUE],0),2),0)","v":"Io"},{"$f":"IFERROR(INDEX(tblListedesclasses[],MATCH(SUMPRODUCT((tblListedesclasses[GIORNO]=tblHoraires[[#Headers],[LUNEDÌ]])*($B50>=tblListedesclasses[ORA INIZIO])*($B50<=tblListedesclasses[ORA FINE]),tblListedesclasses[UNIQUE]),tblListedesclasses[UNIQUE],0),2),0)","v":0},{"$f":"IFERROR(INDEX(tblListedesclasses[],MATCH(SUMPRODUCT((tblListedesclasses[GIORNO]=tblHoraires[[#Headers],[MARTEDÌ]])*($B50>=tblListedesclasses[ORA INIZIO])*($B50<=tblListedesclasses[ORA FINE]),tblListedesclasses[UNIQUE]),tblListedesclasses[UNIQUE],0),2),0)","v":0},{"$f":"IFERROR(INDEX(tblListedesclasses[],MATCH(SUMPRODUCT((tblListedesclasses[GIORNO]=tblHoraires[[#Headers],[MERCOLEDÌ]])*($B50>=tblListedesclasses[ORA INIZIO])*($B50<=tblListedesclasses[ORA FINE]),tblListedesclasses[UNIQUE]),tblListedesclasses[UNIQUE],0),2),0)","v":0},{"$f":"IFERROR(INDEX(tblListedesclasses[],MATCH(SUMPRODUCT((tblListedesclasses[GIORNO]=tblHoraires[[#Headers],[GIOVEDÌ]])*($B50>=tblListedesclasses[ORA INIZIO])*($B50<=tblListedesclasses[ORA FINE]),tblListedesclasses[UNIQUE]),tblListedesclasses[UNIQUE],0),2),0)","v":0},{"$f":"IFERROR(INDEX(tblListedesclasses[],MATCH(SUMPRODUCT((tblListedesclasses[GIORNO]=tblHoraires[[#Headers],[VENERDÌ]])*($B50>=tblListedesclasses[ORA INIZIO])*($B50<=tblListedesclasses[ORA FINE]),tblListedesclasses[UNIQUE]),tblListedesclasses[UNIQUE],0),2),0)","v":0},{"$f":"IFERROR(INDEX(tblListedesclasses[],MATCH(SUMPRODUCT((tblListedesclasses[GIORNO]=tblHoraires[[#Headers],[SABATO]])*($B50>=tblListedesclasses[ORA INIZIO])*($B50<=tblListedesclasses[ORA FINE]),tblListedesclasses[UNIQUE]),tblListedesclasses[UNIQUE],0),2),0)","v":0}]
[null,"19:30:00",{"$f":"IFERROR(INDEX(tblListedesclasses[],MATCH(SUMPRODUCT((tblListedesclasses[GIORNO]=tblHoraires[[#Headers],[DOMENICA]])*($B51>=tblListedesclasses[ORA INIZIO])*($B51<=tblListedesclasses[ORA FINE]),tblListedesclasses[UNIQUE]),tblListedesclasses[UNIQUE],0),2),0)","v":"Io"},{"$f":"IFERROR(INDEX(tblListedesclasses[],MATCH(SUMPRODUCT((tblListedesclasses[GIORNO]=tblHoraires[[#Headers],[LUNEDÌ]])*($B51>=tblListedesclasses[ORA INIZIO])*($B51<=tblListedesclasses[ORA FINE]),tblListedesclasses[UNIQUE]),tblListedesclasses[UNIQUE],0),2),0)","v":0},{"$f":"IFERROR(INDEX(tblListedesclasses[],MATCH(SUMPRODUCT((tblListedesclasses[GIORNO]=tblHoraires[[#Headers],[MARTEDÌ]])*($B51>=tblListedesclasses[ORA INIZIO])*($B51<=tblListedesclasses[ORA FINE]),tblListedesclasses[UNIQUE]),tblListedesclasses[UNIQUE],0),2),0)","v":0},{"$f":"IFERROR(INDEX(tblListedesclasses[],MATCH(SUMPRODUCT((tblListedesclasses[GIORNO]=tblHoraires[[#Headers],[MERCOLEDÌ]])*($B51>=tblListedesclasses[ORA INIZIO])*($B51<=tblListedesclasses[ORA FINE]),tblListedesclasses[UNIQUE]),tblListedesclasses[UNIQUE],0),2),0)","v":0},{"$f":"IFERROR(INDEX(tblListedesclasses[],MATCH(SUMPRODUCT((tblListedesclasses[GIORNO]=tblHoraires[[#Headers],[GIOVEDÌ]])*($B51>=tblListedesclasses[ORA INIZIO])*($B51<=tblListedesclasses[ORA FINE]),tblListedesclasses[UNIQUE]),tblListedesclasses[UNIQUE],0),2),0)","v":0},{"$f":"IFERROR(INDEX(tblListedesclasses[],MATCH(SUMPRODUCT((tblListedesclasses[GIORNO]=tblHoraires[[#Headers],[VENERDÌ]])*($B51>=tblListedesclasses[ORA INIZIO])*($B51<=tblListedesclasses[ORA FINE]),tblListedesclasses[UNIQUE]),tblListedesclasses[UNIQUE],0),2),0)","v":0},{"$f":"IFERROR(INDEX(tblListedesclasses[],MATCH(SUMPRODUCT((tblListedesclasses[GIORNO]=tblHoraires[[#Headers],[SABATO]])*($B51>=tblListedesclasses[ORA INIZIO])*($B51<=tblListedesclasses[ORA FINE]),tblListedesclasses[UNIQUE]),tblListedesclasses[UNIQUE],0),2),0)","v":0}]
[null,"19:45:00",{"$f":"IFERROR(INDEX(tblListedesclasses[],MATCH(SUMPRODUCT((tblListedesclasses[GIORNO]=tblHoraires[[#Headers],[DOMENICA]])*($B52>=tblListedesclasses[ORA INIZIO])*($B52<=tblListedesclasses[ORA FINE]),tblListedesclasses[UNIQUE]),tblListedesclasses[UNIQUE],0),2),0)","v":"Io"},{"$f":"IFERROR(INDEX(tblListedesclasses[],MATCH(SUMPRODUCT((tblListedesclasses[GIORNO]=tblHoraires[[#Headers],[LUNEDÌ]])*($B52>=tblListedesclasses[ORA INIZIO])*($B52<=tblListedesclasses[ORA FINE]),tblListedesclasses[UNIQUE]),tblListedesclasses[UNIQUE],0),2),0)","v":0},{"$f":"IFERROR(INDEX(tblListedesclasses[],MATCH(SUMPRODUCT((tblListedesclasses[GIORNO]=tblHoraires[[#Headers],[MARTEDÌ]])*($B52>=tblListedesclasses[ORA INIZIO])*($B52<=tblListedesclasses[ORA FINE]),tblListedesclasses[UNIQUE]),tblListedesclasses[UNIQUE],0),2),0)","v":0},{"$f":"IFERROR(INDEX(tblListedesclasses[],MATCH(SUMPRODUCT((tblListedesclasses[GIORNO]=tblHoraires[[#Headers],[MERCOLEDÌ]])*($B52>=tblListedesclasses[ORA INIZIO])*($B52<=tblListedesclasses[ORA FINE]),tblListedesclasses[UNIQUE]),tblListedesclasses[UNIQUE],0),2),0)","v":0},{"$f":"IFERROR(INDEX(tblListedesclasses[],MATCH(SUMPRODUCT((tblListedesclasses[GIORNO]=tblHoraires[[#Headers],[GIOVEDÌ]])*($B52>=tblListedesclasses[ORA INIZIO])*($B52<=tblListedesclasses[ORA FINE]),tblListedesclasses[UNIQUE]),tblListedesclasses[UNIQUE],0),2),0)","v":0},{"$f":"IFERROR(INDEX(tblListedesclasses[],MATCH(SUMPRODUCT((tblListedesclasses[GIORNO]=tblHoraires[[#Headers],[VENERDÌ]])*($B52>=tblListedesclasses[ORA INIZIO])*($B52<=tblListedesclasses[ORA FINE]),tblListedesclasses[UNIQUE]),tblListedesclasses[UNIQUE],0),2),0)","v":0},{"$f":"IFERROR(INDEX(tblListedesclasses[],MATCH(SUMPRODUCT((tblListedesclasses[GIORNO]=tblHoraires[[#Headers],[SABATO]])*($B52>=tblListedesclasses[ORA INIZIO])*($B52<=tblListedesclasses[ORA FINE]),tblListedesclasses[UNIQUE]),tblListedesclasses[UNIQUE],0),2),0)","v":0}]
[null,"20:00:00",{"$f":"IFERROR(INDEX(tblListedesclasses[],MATCH(SUMPRODUCT((tblListedesclasses[GIORNO]=tblHoraires[[#Headers],[DOMENICA]])*($B53>=tblListedesclasses[ORA INIZIO])*($B53<=tblListedesclasses[ORA FINE]),tblListedesclasses[UNIQUE]),tblListedesclasses[UNIQUE],0),2),0)","v":"Io"},{"$f":"IFERROR(INDEX(tblListedesclasses[],MATCH(SUMPRODUCT((tblListedesclasses[GIORNO]=tblHoraires[[#Headers],[LUNEDÌ]])*($B53>=tblListedesclasses[ORA INIZIO])*($B53<=tblListedesclasses[ORA FINE]),tblListedesclasses[UNIQUE]),tblListedesclasses[UNIQUE],0),2),0)","v":0},{"$f":"IFERROR(INDEX(tblListedesclasses[],MATCH(SUMPRODUCT((tblListedesclasses[GIORNO]=tblHoraires[[#Headers],[MARTEDÌ]])*($B53>=tblListedesclasses[ORA INIZIO])*($B53<=tblListedesclasses[ORA FINE]),tblListedesclasses[UNIQUE]),tblListedesclasses[UNIQUE],0),2),0)","v":0},{"$f":"IFERROR(INDEX(tblListedesclasses[],MATCH(SUMPRODUCT((tblListedesclasses[GIORNO]=tblHoraires[[#Headers],[MERCOLEDÌ]])*($B53>=tblListedesclasses[ORA INIZIO])*($B53<=tblListedesclasses[ORA FINE]),tblListedesclasses[UNIQUE]),tblListedesclasses[UNIQUE],0),2),0)","v":0},{"$f":"IFERROR(INDEX(tblListedesclasses[],MATCH(SUMPRODUCT((tblListedesclasses[GIORNO]=tblHoraires[[#Headers],[GIOVEDÌ]])*($B53>=tblListedesclasses[ORA INIZIO])*($B53<=tblListedesclasses[ORA FINE]),tblListedesclasses[UNIQUE]),tblListedesclasses[UNIQUE],0),2),0)","v":0},{"$f":"IFERROR(INDEX(tblListedesclasses[],MATCH(SUMPRODUCT((tblListedesclasses[GIORNO]=tblHoraires[[#Headers],[VENERDÌ]])*($B53>=tblListedesclasses[ORA INIZIO])*($B53<=tblListedesclasses[ORA FINE]),tblListedesclasses[UNIQUE]),tblListedesclasses[UNIQUE],0),2),0)","v":0},{"$f":"IFERROR(INDEX(tblListedesclasses[],MATCH(SUMPRODUCT((tblListedesclasses[GIORNO]=tblHoraires[[#Headers],[SABATO]])*($B53>=tblListedesclasses[ORA INIZIO])*($B53<=tblListedesclasses[ORA FINE]),tblListedesclasses[UNIQUE]),tblListedesclasses[UNIQUE],0),2),0)","v":0}]
[null,"20:15:00",{"$f":"IFERROR(INDEX(tblListedesclasses[],MATCH(SUMPRODUCT((tblListedesclasses[GIORNO]=tblHoraires[[#Headers],[DOMENICA]])*($B54>=tblListedesclasses[ORA INIZIO])*($B54<=tblListedesclasses[ORA FINE]),tblListedesclasses[UNIQUE]),tblListedesclasses[UNIQUE],0),2),0)","v":0},{"$f":"IFERROR(INDEX(tblListedesclasses[],MATCH(SUMPRODUCT((tblListedesclasses[GIORNO]=tblHoraires[[#Headers],[LUNEDÌ]])*($B54>=tblListedesclasses[ORA INIZIO])*($B54<=tblListedesclasses[ORA FINE]),tblListedesclasses[UNIQUE]),tblListedesclasses[UNIQUE],0),2),0)","v":0},{"$f":"IFERROR(INDEX(tblListedesclasses[],MATCH(SUMPRODUCT((tblListedesclasses[GIORNO]=tblHoraires[[#Headers],[MARTEDÌ]])*($B54>=tblListedesclasses[ORA INIZIO])*($B54<=tblListedesclasses[ORA FINE]),tblListedesclasses[UNIQUE]),tblListedesclasses[UNIQUE],0),2),0)","v":0},{"$f":"IFERROR(INDEX(tblListedesclasses[],MATCH(SUMPRODUCT((tblListedesclasses[GIORNO]=tblHoraires[[#Headers],[MERCOLEDÌ]])*($B54>=tblListedesclasses[ORA INIZIO])*($B54<=tblListedesclasses[ORA FINE]),tblListedesclasses[UNIQUE]),tblListedesclasses[UNIQUE],0),2),0)","v":0},{"$f":"IFERROR(INDEX(tblListedesclasses[],MATCH(SUMPRODUCT((tblListedesclasses[GIORNO]=tblHoraires[[#Headers],[GIOVEDÌ]])*($B54>=tblListedesclasses[ORA INIZIO])*($B54<=tblListedesclasses[ORA FINE]),tblListedesclasses[UNIQUE]),tblListedesclasses[UNIQUE],0),2),0)","v":0},{"$f":"IFERROR(INDEX(tblListedesclasses[],MATCH(SUMPRODUCT((tblListedesclasses[GIORNO]=tblHoraires[[#Headers],[VENERDÌ]])*($B54>=tblListedesclasses[ORA INIZIO])*($B54<=tblListedesclasses[ORA FINE]),tblListedesclasses[UNIQUE]),tblListedesclasses[UNIQUE],0),2),0)","v":0},{"$f":"IFERROR(INDEX(tblListedesclasses[],MATCH(SUMPRODUCT((tblListedesclasses[GIORNO]=tblHoraires[[#Headers],[SABATO]])*($B54>=tblListedesclasses[ORA INIZIO])*($B54<=tblListedesclasses[ORA FINE]),tblListedesclasses[UNIQUE]),tblListedesclasses[UNIQUE],0),2),0)","v":0}]
[null,"20:30:00",{"$f":"IFERROR(INDEX(tblListedesclasses[],MATCH(SUMPRODUCT((tblListedesclasses[GIORNO]=tblHoraires[[#Headers],[DOMENICA]])*($B55>=tblListedesclasses[ORA INIZIO])*($B55<=tblListedesclasses[ORA FINE]),tblListedesclasses[UNIQUE]),tblListedesclasses[UNIQUE],0),2),0)","v":0},{"$f":"IFERROR(INDEX(tblListedesclasses[],MATCH(SUMPRODUCT((tblListedesclasses[GIORNO]=tblHoraires[[#Headers],[LUNEDÌ]])*($B55>=tblListedesclasses[ORA INIZIO])*($B55<=tblListedesclasses[ORA FINE]),tblListedesclasses[UNIQUE]),tblListedesclasses[UNIQUE],0),2),0)","v":0},{"$f":"IFERROR(INDEX(tblListedesclasses[],MATCH(SUMPRODUCT((tblListedesclasses[GIORNO]=tblHoraires[[#Headers],[MARTEDÌ]])*($B55>=tblListedesclasses[ORA INIZIO])*($B55<=tblListedesclasses[ORA FINE]),tblListedesclasses[UNIQUE]),tblListedesclasses[UNIQUE],0),2),0)","v":0},{"$f":"IFERROR(INDEX(tblListedesclasses[],MATCH(SUMPRODUCT((tblListedesclasses[GIORNO]=tblHoraires[[#Headers],[MERCOLEDÌ]])*($B55>=tblListedesclasses[ORA INIZIO])*($B55<=tblListedesclasses[ORA FINE]),tblListedesclasses[UNIQUE]),tblListedesclasses[UNIQUE],0),2),0)","v":0},{"$f":"IFERROR(INDEX(tblListedesclasses[],MATCH(SUMPRODUCT((tblListedesclasses[GIORNO]=tblHoraires[[#Headers],[GIOVEDÌ]])*($B55>=tblListedesclasses[ORA INIZIO])*($B55<=tblListedesclasses[ORA FINE]),tblListedesclasses[UNIQUE]),tblListedesclasses[UNIQUE],0),2),0)","v":0},{"$f":"IFERROR(INDEX(tblListedesclasses[],MATCH(SUMPRODUCT((tblListedesclasses[GIORNO]=tblHoraires[[#Headers],[VENERDÌ]])*($B55>=tblListedesclasses[ORA INIZIO])*($B55<=tblListedesclasses[ORA FINE]),tblListedesclasses[UNIQUE]),tblListedesclasses[UNIQUE],0),2),0)","v":0},{"$f":"IFERROR(INDEX(tblListedesclasses[],MATCH(SUMPRODUCT((tblListedesclasses[GIORNO]=tblHoraires[[#Headers],[SABATO]])*($B55>=tblListedesclasses[ORA INIZIO])*($B55<=tblListedesclasses[ORA FINE]),tblListedesclasses[UNIQUE]),tblListedesclasses[UNIQUE],0),2),0)","v":0}]
[null,"20:45:00",{"$f":"IFERROR(INDEX(tblListedesclasses[],MATCH(SUMPRODUCT((tblListedesclasses[GIORNO]=tblHoraires[[#Headers],[DOMENICA]])*($B56>=tblListedesclasses[ORA INIZIO])*($B56<=tblListedesclasses[ORA FINE]),tblListedesclasses[UNIQUE]),tblListedesclasses[UNIQUE],0),2),0)","v":0},{"$f":"IFERROR(INDEX(tblListedesclasses[],MATCH(SUMPRODUCT((tblListedesclasses[GIORNO]=tblHoraires[[#Headers],[LUNEDÌ]])*($B56>=tblListedesclasses[ORA INIZIO])*($B56<=tblListedesclasses[ORA FINE]),tblListedesclasses[UNIQUE]),tblListedesclasses[UNIQUE],0),2),0)","v":0},{"$f":"IFERROR(INDEX(tblListedesclasses[],MATCH(SUMPRODUCT((tblListedesclasses[GIORNO]=tblHoraires[[#Headers],[MARTEDÌ]])*($B56>=tblListedesclasses[ORA INIZIO])*($B56<=tblListedesclasses[ORA FINE]),tblListedesclasses[UNIQUE]),tblListedesclasses[UNIQUE],0),2),0)","v":0},{"$f":"IFERROR(INDEX(tblListedesclasses[],MATCH(SUMPRODUCT((tblListedesclasses[GIORNO]=tblHoraires[[#Headers],[MERCOLEDÌ]])*($B56>=tblListedesclasses[ORA INIZIO])*($B56<=tblListedesclasses[ORA FINE]),tblListedesclasses[UNIQUE]),tblListedesclasses[UNIQUE],0),2),0)","v":0},{"$f":"IFERROR(INDEX(tblListedesclasses[],MATCH(SUMPRODUCT((tblListedesclasses[GIORNO]=tblHoraires[[#Headers],[GIOVEDÌ]])*($B56>=tblListedesclasses[ORA INIZIO])*($B56<=tblListedesclasses[ORA FINE]),tblListedesclasses[UNIQUE]),tblListedesclasses[UNIQUE],0),2),0)","v":0},{"$f":"IFERROR(INDEX(tblListedesclasses[],MATCH(SUMPRODUCT((tblListedesclasses[GIORNO]=tblHoraires[[#Headers],[VENERDÌ]])*($B56>=tblListedesclasses[ORA INIZIO])*($B56<=tblListedesclasses[ORA FINE]),tblListedesclasses[UNIQUE]),tblListedesclasses[UNIQUE],0),2),0)","v":0},{"$f":"IFERROR(INDEX(tblListedesclasses[],MATCH(SUMPRODUCT((tblListedesclasses[GIORNO]=tblHoraires[[#Headers],[SABATO]])*($B56>=tblListedesclasses[ORA INIZIO])*($B56<=tblListedesclasses[ORA FINE]),tblListedesclasses[UNIQUE]),tblListedesclasses[UNIQUE],0),2),0)","v":0}]
[null,"21:00:00",{"$f":"IFERROR(INDEX(tblListedesclasses[],MATCH(SUMPRODUCT((tblListedesclasses[GIORNO]=tblHoraires[[#Headers],[DOMENICA]])*($B57>=tblListedesclasses[ORA INIZIO])*($B57<=tblListedesclasses[ORA FINE]),tblListedesclasses[UNIQUE]),tblListedesclasses[UNIQUE],0),2),0)","v":0},{"$f":"IFERROR(INDEX(tblListedesclasses[],MATCH(SUMPRODUCT((tblListedesclasses[GIORNO]=tblHoraires[[#Headers],[LUNEDÌ]])*($B57>=tblListedesclasses[ORA INIZIO])*($B57<=tblListedesclasses[ORA FINE]),tblListedesclasses[UNIQUE]),tblListedesclasses[UNIQUE],0),2),0)","v":0},{"$f":"IFERROR(INDEX(tblListedesclasses[],MATCH(SUMPRODUCT((tblListedesclasses[GIORNO]=tblHoraires[[#Headers],[MARTEDÌ]])*($B57>=tblListedesclasses[ORA INIZIO])*($B57<=tblListedesclasses[ORA FINE]),tblListedesclasses[UNIQUE]),tblListedesclasses[UNIQUE],0),2),0)","v":0},{"$f":"IFERROR(INDEX(tblListedesclasses[],MATCH(SUMPRODUCT((tblListedesclasses[GIORNO]=tblHoraires[[#Headers],[MERCOLEDÌ]])*($B57>=tblListedesclasses[ORA INIZIO])*($B57<=tblListedesclasses[ORA FINE]),tblListedesclasses[UNIQUE]),tblListedesclasses[UNIQUE],0),2),0)","v":0},{"$f":"IFERROR(INDEX(tblListedesclasses[],MATCH(SUMPRODUCT((tblListedesclasses[GIORNO]=tblHoraires[[#Headers],[GIOVEDÌ]])*($B57>=tblListedesclasses[ORA INIZIO])*($B57<=tblListedesclasses[ORA FINE]),tblListedesclasses[UNIQUE]),tblListedesclasses[UNIQUE],0),2),0)","v":0},{"$f":"IFERROR(INDEX(tblListedesclasses[],MATCH(SUMPRODUCT((tblListedesclasses[GIORNO]=tblHoraires[[#Headers],[VENERDÌ]])*($B57>=tblListedesclasses[ORA INIZIO])*($B57<=tblListedesclasses[ORA FINE]),tblListedesclasses[UNIQUE]),tblListedesclasses[UNIQUE],0),2),0)","v":0},{"$f":"IFERROR(INDEX(tblListedesclasses[],MATCH(SUMPRODUCT((tblListedesclasses[GIORNO]=tblHoraires[[#Headers],[SABATO]])*($B57>=tblListedesclasses[ORA INIZIO])*($B57<=tblListedesclasses[ORA FINE]),tblListedesclasses[UNIQUE]),tblListedesclasses[UNIQUE],0),2),0)","v":0}]
[null,"21:15:00",{"$f":"IFERROR(INDEX(tblListedesclasses[],MATCH(SUMPRODUCT((tblListedesclasses[GIORNO]=tblHoraires[[#Headers],[DOMENICA]])*($B58>=tblListedesclasses[ORA INIZIO])*($B58<=tblListedesclasses[ORA FINE]),tblListedesclasses[UNIQUE]),tblListedesclasses[UNIQUE],0),2),0)","v":0},{"$f":"IFERROR(INDEX(tblListedesclasses[],MATCH(SUMPRODUCT((tblListedesclasses[GIORNO]=tblHoraires[[#Headers],[LUNEDÌ]])*($B58>=tblListedesclasses[ORA INIZIO])*($B58<=tblListedesclasses[ORA FINE]),tblListedesclasses[UNIQUE]),tblListedesclasses[UNIQUE],0),2),0)","v":0},{"$f":"IFERROR(INDEX(tblListedesclasses[],MATCH(SUMPRODUCT((tblListedesclasses[GIORNO]=tblHoraires[[#Headers],[MARTEDÌ]])*($B58>=tblListedesclasses[ORA INIZIO])*($B58<=tblListedesclasses[ORA FINE]),tblListedesclasses[UNIQUE]),tblListedesclasses[UNIQUE],0),2),0)","v":0},{"$f":"IFERROR(INDEX(tblListedesclasses[],MATCH(SUMPRODUCT((tblListedesclasses[GIORNO]=tblHoraires[[#Headers],[MERCOLEDÌ]])*($B58>=tblListedesclasses[ORA INIZIO])*($B58<=tblListedesclasses[ORA FINE]),tblListedesclasses[UNIQUE]),tblListedesclasses[UNIQUE],0),2),0)","v":0},{"$f":"IFERROR(INDEX(tblListedesclasses[],MATCH(SUMPRODUCT((tblListedesclasses[GIORNO]=tblHoraires[[#Headers],[GIOVEDÌ]])*($B58>=tblListedesclasses[ORA INIZIO])*($B58<=tblListedesclasses[ORA FINE]),tblListedesclasses[UNIQUE]),tblListedesclasses[UNIQUE],0),2),0)","v":0},{"$f":"IFERROR(INDEX(tblListedesclasses[],MATCH(SUMPRODUCT((tblListedesclasses[GIORNO]=tblHoraires[[#Headers],[VENERDÌ]])*($B58>=tblListedesclasses[ORA INIZIO])*($B58<=tblListedesclasses[ORA FINE]),tblListedesclasses[UNIQUE]),tblListedesclasses[UNIQUE],0),2),0)","v":0},{"$f":"IFERROR(INDEX(tblListedesclasses[],MATCH(SUMPRODUCT((tblListedesclasses[GIORNO]=tblHoraires[[#Headers],[SABATO]])*($B58>=tblListedesclasses[ORA INIZIO])*($B58<=tblListedesclasses[ORA FINE]),tblListedesclasses[UNIQUE]),tblListedesclasses[UNIQUE],0),2),0)","v":0}]
[null,"21:30:00",{"$f":"IFERROR(INDEX(tblListedesclasses[],MATCH(SUMPRODUCT((tblListedesclasses[GIORNO]=tblHoraires[[#Headers],[DOMENICA]])*($B59>=tblListedesclasses[ORA INIZIO])*($B59<=tblListedesclasses[ORA FINE]),tblListedesclasses[UNIQUE]),tblListedesclasses[UNIQUE],0),2),0)","v":0},{"$f":"IFERROR(INDEX(tblListedesclasses[],MATCH(SUMPRODUCT((tblListedesclasses[GIORNO]=tblHoraires[[#Headers],[LUNEDÌ]])*($B59>=tblListedesclasses[ORA INIZIO])*($B59<=tblListedesclasses[ORA FINE]),tblListedesclasses[UNIQUE]),tblListedesclasses[UNIQUE],0),2),0)","v":0},{"$f":"IFERROR(INDEX(tblListedesclasses[],MATCH(SUMPRODUCT((tblListedesclasses[GIORNO]=tblHoraires[[#Headers],[MARTEDÌ]])*($B59>=tblListedesclasses[ORA INIZIO])*($B59<=tblListedesclasses[ORA FINE]),tblListedesclasses[UNIQUE]),tblListedesclasses[UNIQUE],0),2),0)","v":0},{"$f":"IFERROR(INDEX(tblListedesclasses[],MATCH(SUMPRODUCT((tblListedesclasses[GIORNO]=tblHoraires[[#Headers],[MERCOLEDÌ]])*($B59>=tblListedesclasses[ORA INIZIO])*($B59<=tblListedesclasses[ORA FINE]),tblListedesclasses[UNIQUE]),tblListedesclasses[UNIQUE],0),2),0)","v":0},{"$f":"IFERROR(INDEX(tblListedesclasses[],MATCH(SUMPRODUCT((tblListedesclasses[GIORNO]=tblHoraires[[#Headers],[GIOVEDÌ]])*($B59>=tblListedesclasses[ORA INIZIO])*($B59<=tblListedesclasses[ORA FINE]),tblListedesclasses[UNIQUE]),tblListedesclasses[UNIQUE],0),2),0)","v":0},{"$f":"IFERROR(INDEX(tblListedesclasses[],MATCH(SUMPRODUCT((tblListedesclasses[GIORNO]=tblHoraires[[#Headers],[VENERDÌ]])*($B59>=tblListedesclasses[ORA INIZIO])*($B59<=tblListedesclasses[ORA FINE]),tblListedesclasses[UNIQUE]),tblListedesclasses[UNIQUE],0),2),0)","v":0},{"$f":"IFERROR(INDEX(tblListedesclasses[],MATCH(SUMPRODUCT((tblListedesclasses[GIORNO]=tblHoraires[[#Headers],[SABATO]])*($B59>=tblListedesclasses[ORA INIZIO])*($B59<=tblListedesclasses[ORA FINE]),tblListedesclasses[UNIQUE]),tblListedesclasses[UNIQUE],0),2),0)","v":0}]
[null,"21:45:00",{"$f":"IFERROR(INDEX(tblListedesclasses[],MATCH(SUMPRODUCT((tblListedesclasses[GIORNO]=tblHoraires[[#Headers],[DOMENICA]])*($B60>=tblListedesclasses[ORA INIZIO])*($B60<=tblListedesclasses[ORA FINE]),tblListedesclasses[UNIQUE]),tblListedesclasses[UNIQUE],0),2),0)","v":0},{"$f":"IFERROR(INDEX(tblListedesclasses[],MATCH(SUMPRODUCT((tblListedesclasses[GIORNO]=tblHoraires[[#Headers],[LUNEDÌ]])*($B60>=tblListedesclasses[ORA INIZIO])*($B60<=tblListedesclasses[ORA FINE]),tblListedesclasses[UNIQUE]),tblListedesclasses[UNIQUE],0),2),0)","v":0},{"$f":"IFERROR(INDEX(tblListedesclasses[],MATCH(SUMPRODUCT((tblListedesclasses[GIORNO]=tblHoraires[[#Headers],[MARTEDÌ]])*($B60>=tblListedesclasses[ORA INIZIO])*($B60<=tblListedesclasses[ORA FINE]),tblListedesclasses[UNIQUE]),tblListedesclasses[UNIQUE],0),2),0)","v":0},{"$f":"IFERROR(INDEX(tblListedesclasses[],MATCH(SUMPRODUCT((tblListedesclasses[GIORNO]=tblHoraires[[#Headers],[MERCOLEDÌ]])*($B60>=tblListedesclasses[ORA INIZIO])*($B60<=tblListedesclasses[ORA FINE]),tblListedesclasses[UNIQUE]),tblListedesclasses[UNIQUE],0),2),0)","v":0},{"$f":"IFERROR(INDEX(tblListedesclasses[],MATCH(SUMPRODUCT((tblListedesclasses[GIORNO]=tblHoraires[[#Headers],[GIOVEDÌ]])*($B60>=tblListedesclasses[ORA INIZIO])*($B60<=tblListedesclasses[ORA FINE]),tblListedesclasses[UNIQUE]),tblListedesclasses[UNIQUE],0),2),0)","v":0},{"$f":"IFERROR(INDEX(tblListedesclasses[],MATCH(SUMPRODUCT((tblListedesclasses[GIORNO]=tblHoraires[[#Headers],[VENERDÌ]])*($B60>=tblListedesclasses[ORA INIZIO])*($B60<=tblListedesclasses[ORA FINE]),tblListedesclasses[UNIQUE]),tblListedesclasses[UNIQUE],0),2),0)","v":0},{"$f":"IFERROR(INDEX(tblListedesclasses[],MATCH(SUMPRODUCT((tblListedesclasses[GIORNO]=tblHoraires[[#Headers],[SABATO]])*($B60>=tblListedesclasses[ORA INIZIO])*($B60<=tblListedesclasses[ORA FINE]),tblListedesclasses[UNIQUE]),tblListedesclasses[UNIQUE],0),2),0)","v":0}]
[null,"22:00:00",{"$f":"IFERROR(INDEX(tblListedesclasses[],MATCH(SUMPRODUCT((tblListedesclasses[GIORNO]=tblHoraires[[#Headers],[DOMENICA]])*($B61>=tblListedesclasses[ORA INIZIO])*($B61<=tblListedesclasses[ORA FINE]),tblListedesclasses[UNIQUE]),tblListedesclasses[UNIQUE],0),2),0)","v":0},{"$f":"IFERROR(INDEX(tblListedesclasses[],MATCH(SUMPRODUCT((tblListedesclasses[GIORNO]=tblHoraires[[#Headers],[LUNEDÌ]])*($B61>=tblListedesclasses[ORA INIZIO])*($B61<=tblListedesclasses[ORA FINE]),tblListedesclasses[UNIQUE]),tblListedesclasses[UNIQUE],0),2),0)","v":0},{"$f":"IFERROR(INDEX(tblListedesclasses[],MATCH(SUMPRODUCT((tblListedesclasses[GIORNO]=tblHoraires[[#Headers],[MARTEDÌ]])*($B61>=tblListedesclasses[ORA INIZIO])*($B61<=tblListedesclasses[ORA FINE]),tblListedesclasses[UNIQUE]),tblListedesclasses[UNIQUE],0),2),0)","v":0},{"$f":"IFERROR(INDEX(tblListedesclasses[],MATCH(SUMPRODUCT((tblListedesclasses[GIORNO]=tblHoraires[[#Headers],[MERCOLEDÌ]])*($B61>=tblListedesclasses[ORA INIZIO])*($B61<=tblListedesclasses[ORA FINE]),tblListedesclasses[UNIQUE]),tblListedesclasses[UNIQUE],0),2),0)","v":0},{"$f":"IFERROR(INDEX(tblListedesclasses[],MATCH(SUMPRODUCT((tblListedesclasses[GIORNO]=tblHoraires[[#Headers],[GIOVEDÌ]])*($B61>=tblListedesclasses[ORA INIZIO])*($B61<=tblListedesclasses[ORA FINE]),tblListedesclasses[UNIQUE]),tblListedesclasses[UNIQUE],0),2),0)","v":0},{"$f":"IFERROR(INDEX(tblListedesclasses[],MATCH(SUMPRODUCT((tblListedesclasses[GIORNO]=tblHoraires[[#Headers],[VENERDÌ]])*($B61>=tblListedesclasses[ORA INIZIO])*($B61<=tblListedesclasses[ORA FINE]),tblListedesclasses[UNIQUE]),tblListedesclasses[UNIQUE],0),2),0)","v":0},{"$f":"IFERROR(INDEX(tblListedesclasses[],MATCH(SUMPRODUCT((tblListedesclasses[GIORNO]=tblHoraires[[#Headers],[SABATO]])*($B61>=tblListedesclasses[ORA INIZIO])*($B61<=tblListedesclasses[ORA FINE]),tblListedesclasses[UNIQUE]),tblListedesclasses[UNIQUE],0),2),0)","v":0}]
[null,"22:15:00",{"$f":"IFERROR(INDEX(tblListedesclasses[],MATCH(SUMPRODUCT((tblListedesclasses[GIORNO]=tblHoraires[[#Headers],[DOMENICA]])*($B62>=tblListedesclasses[ORA INIZIO])*($B62<=tblListedesclasses[ORA FINE]),tblListedesclasses[UNIQUE]),tblListedesclasses[UNIQUE],0),2),0)","v":0},{"$f":"IFERROR(INDEX(tblListedesclasses[],MATCH(SUMPRODUCT((tblListedesclasses[GIORNO]=tblHoraires[[#Headers],[LUNEDÌ]])*($B62>=tblListedesclasses[ORA INIZIO])*($B62<=tblListedesclasses[ORA FINE]),tblListedesclasses[UNIQUE]),tblListedesclasses[UNIQUE],0),2),0)","v":0},{"$f":"IFERROR(INDEX(tblListedesclasses[],MATCH(SUMPRODUCT((tblListedesclasses[GIORNO]=tblHoraires[[#Headers],[MARTEDÌ]])*($B62>=tblListedesclasses[ORA INIZIO])*($B62<=tblListedesclasses[ORA FINE]),tblListedesclasses[UNIQUE]),tblListedesclasses[UNIQUE],0),2),0)","v":0},{"$f":"IFERROR(INDEX(tblListedesclasses[],MATCH(SUMPRODUCT((tblListedesclasses[GIORNO]=tblHoraires[[#Headers],[MERCOLEDÌ]])*($B62>=tblListedesclasses[ORA INIZIO])*($B62<=tblListedesclasses[ORA FINE]),tblListedesclasses[UNIQUE]),tblListedesclasses[UNIQUE],0),2),0)","v":0},{"$f":"IFERROR(INDEX(tblListedesclasses[],MATCH(SUMPRODUCT((tblListedesclasses[GIORNO]=tblHoraires[[#Headers],[GIOVEDÌ]])*($B62>=tblListedesclasses[ORA INIZIO])*($B62<=tblListedesclasses[ORA FINE]),tblListedesclasses[UNIQUE]),tblListedesclasses[UNIQUE],0),2),0)","v":0},{"$f":"IFERROR(INDEX(tblListedesclasses[],MATCH(SUMPRODUCT((tblListedesclasses[GIORNO]=tblHoraires[[#Headers],[VENERDÌ]])*($B62>=tblListedesclasses[ORA INIZIO])*($B62<=tblListedesclasses[ORA FINE]),tblListedesclasses[UNIQUE]),tblListedesclasses[UNIQUE],0),2),0)","v":0},{"$f":"IFERROR(INDEX(tblListedesclasses[],MATCH(SUMPRODUCT((tblListedesclasses[GIORNO]=tblHoraires[[#Headers],[SABATO]])*($B62>=tblListedesclasses[ORA INIZIO])*($B62<=tblListedesclasses[ORA FINE]),tblListedesclasses[UNIQUE]),tblListedesclasses[UNIQUE],0),2),0)","v":0}]
[null,"22:30:00",{"$f":"IFERROR(INDEX(tblListedesclasses[],MATCH(SUMPRODUCT((tblListedesclasses[GIORNO]=tblHoraires[[#Headers],[DOMENICA]])*($B63>=tblListedesclasses[ORA INIZIO])*($B63<=tblListedesclasses[ORA FINE]),tblListedesclasses[UNIQUE]),tblListedesclasses[UNIQUE],0),2),0)","v":0},{"$f":"IFERROR(INDEX(tblListedesclasses[],MATCH(SUMPRODUCT((tblListedesclasses[GIORNO]=tblHoraires[[#Headers],[LUNEDÌ]])*($B63>=tblListedesclasses[ORA INIZIO])*($B63<=tblListedesclasses[ORA FINE]),tblListedesclasses[UNIQUE]),tblListedesclasses[UNIQUE],0),2),0)","v":0},{"$f":"IFERROR(INDEX(tblListedesclasses[],MATCH(SUMPRODUCT((tblListedesclasses[GIORNO]=tblHoraires[[#Headers],[MARTEDÌ]])*($B63>=tblListedesclasses[ORA INIZIO])*($B63<=tblListedesclasses[ORA FINE]),tblListedesclasses[UNIQUE]),tblListedesclasses[UNIQUE],0),2),0)","v":0},{"$f":"IFERROR(INDEX(tblListedesclasses[],MATCH(SUMPRODUCT((tblListedesclasses[GIORNO]=tblHoraires[[#Headers],[MERCOLEDÌ]])*($B63>=tblListedesclasses[ORA INIZIO])*($B63<=tblListedesclasses[ORA FINE]),tblListedesclasses[UNIQUE]),tblListedesclasses[UNIQUE],0),2),0)","v":0},{"$f":"IFERROR(INDEX(tblListedesclasses[],MATCH(SUMPRODUCT((tblListedesclasses[GIORNO]=tblHoraires[[#Headers],[GIOVEDÌ]])*($B63>=tblListedesclasses[ORA INIZIO])*($B63<=tblListedesclasses[ORA FINE]),tblListedesclasses[UNIQUE]),tblListedesclasses[UNIQUE],0),2),0)","v":0},{"$f":"IFERROR(INDEX(tblListedesclasses[],MATCH(SUMPRODUCT((tblListedesclasses[GIORNO]=tblHoraires[[#Headers],[VENERDÌ]])*($B63>=tblListedesclasses[ORA INIZIO])*($B63<=tblListedesclasses[ORA FINE]),tblListedesclasses[UNIQUE]),tblListedesclasses[UNIQUE],0),2),0)","v":0},{"$f":"IFERROR(INDEX(tblListedesclasses[],MATCH(SUMPRODUCT((tblListedesclasses[GIORNO]=tblHoraires[[#Headers],[SABATO]])*($B63>=tblListedesclasses[ORA INIZIO])*($B63<=tblListedesclasses[ORA FINE]),tblListedesclasses[UNIQUE]),tblListedesclasses[UNIQUE],0),2),0)","v":0}]
[null,"22:45:00",{"$f":"IFERROR(INDEX(tblListedesclasses[],MATCH(SUMPRODUCT((tblListedesclasses[GIORNO]=tblHoraires[[#Headers],[DOMENICA]])*($B64>=tblListedesclasses[ORA INIZIO])*($B64<=tblListedesclasses[ORA FINE]),tblListedesclasses[UNIQUE]),tblListedesclasses[UNIQUE],0),2),0)","v":0},{"$f":"IFERROR(INDEX(tblListedesclasses[],MATCH(SUMPRODUCT((tblListedesclasses[GIORNO]=tblHoraires[[#Headers],[LUNEDÌ]])*($B64>=tblListedesclasses[ORA INIZIO])*($B64<=tblListedesclasses[ORA FINE]),tblListedesclasses[UNIQUE]),tblListedesclasses[UNIQUE],0),2),0)","v":0},{"$f":"IFERROR(INDEX(tblListedesclasses[],MATCH(SUMPRODUCT((tblListedesclasses[GIORNO]=tblHoraires[[#Headers],[MARTEDÌ]])*($B64>=tblListedesclasses[ORA INIZIO])*($B64<=tblListedesclasses[ORA FINE]),tblListedesclasses[UNIQUE]),tblListedesclasses[UNIQUE],0),2),0)","v":0},{"$f":"IFERROR(INDEX(tblListedesclasses[],MATCH(SUMPRODUCT((tblListedesclasses[GIORNO]=tblHoraires[[#Headers],[MERCOLEDÌ]])*($B64>=tblListedesclasses[ORA INIZIO])*($B64<=tblListedesclasses[ORA FINE]),tblListedesclasses[UNIQUE]),tblListedesclasses[UNIQUE],0),2),0)","v":0},{"$f":"IFERROR(INDEX(tblListedesclasses[],MATCH(SUMPRODUCT((tblListedesclasses[GIORNO]=tblHoraires[[#Headers],[GIOVEDÌ]])*($B64>=tblListedesclasses[ORA INIZIO])*($B64<=tblListedesclasses[ORA FINE]),tblListedesclasses[UNIQUE]),tblListedesclasses[UNIQUE],0),2),0)","v":0},{"$f":"IFERROR(INDEX(tblListedesclasses[],MATCH(SUMPRODUCT((tblListedesclasses[GIORNO]=tblHoraires[[#Headers],[VENERDÌ]])*($B64>=tblListedesclasses[ORA INIZIO])*($B64<=tblListedesclasses[ORA FINE]),tblListedesclasses[UNIQUE]),tblListedesclasses[UNIQUE],0),2),0)","v":0},{"$f":"IFERROR(INDEX(tblListedesclasses[],MATCH(SUMPRODUCT((tblListedesclasses[GIORNO]=tblHoraires[[#Headers],[SABATO]])*($B64>=tblListedesclasses[ORA INIZIO])*($B64<=tblListedesclasses[ORA FINE]),tblListedesclasses[UNIQUE]),tblListedesclasses[UNIQUE],0),2),0)","v":0}]

{"sheet":"Elenco degli interventi","index":1,"n_rows":13,"n_cols":8,"rows_kept":13,"cut":false,"hidden":false,"merged":[[1,1,1,5],[1,6,1,7]]}
[]
[null,"Elenco degli interventi"]
[null,"Cosa","Operatore","GIORNO","LUOGO","ORA INIZIO","ORA FINE","UNIQUE"]
[null,"Aiuto spesa","Alice","LUNDI","in paese","09:00:00","10:00:00",{"$f":"ROW()-ROW(tblListedesclasses[[#Headers],[UNIQUE]])","v":1}]
[null,"Aiuto spesa","Bruno","VENERDÌ","supermercato","16:30:00","17:30:00",{"$f":"ROW()-ROW(tblListedesclasses[[#Headers],[UNIQUE]])","v":2}]
[null,"Visite d'amicizia","Charles","MERCOLEDÌ","a domicilio","13:00:00","15:00:00",{"$f":"ROW()-ROW(tblListedesclasses[[#Headers],[UNIQUE]])","v":3}]
[null,"Pulizie di casa","Maria","LUNEDÌ","a domicilio","16:00:00","17:00:00",{"$f":"ROW()-ROW(tblListedesclasses[[#Headers],[UNIQUE]])","v":4}]
[null,"Cure","Spitex","MARTEDÌ","a domicilio","11:00:00","12:00:00",{"$f":"ROW()-ROW(tblListedesclasses[[#Headers],[UNIQUE]])","v":5}]
[null,"Cure","Spitex","VENERDÌ","a domicilio","09:00:00","09:30:00",{"$f":"ROW()-ROW(tblListedesclasses[[#Headers],[UNIQUE]])","v":6}]
[null,"Pasti forniti","Ass. pasti","GIOVEDÌ","a domicilio","12:30:00","13:00:00",{"$f":"ROW()-ROW(tblListedesclasses[[#Headers],[UNIQUE]])","v":7}]
[null,"Pasti forniti","Ass. pasti","LUNEDÌ","a domicilio","12:30:00","13:00:00",{"$f":"ROW()-ROW(tblListedesclasses[[#Headers],[UNIQUE]])","v":8}]
[null,"Pasto fuori casa","Chiesa","MERCOLEDÌ","Curia","12:00:00","14:00:00",{"$f":"ROW()-ROW(tblListedesclasses[[#Headers],[UNIQUE]])","v":9}]
[null,"Chiedere notizie","Io","DOMENICA","a domicilio","19:00:00","20:00:00",{"$f":"ROW()-ROW(tblListedesclasses[[#Headers],[UNIQUE]])","v":10}]